Workbook

Sheet Master Project List
A1: Master Project List | D1: Legend: | F1: DO NOT INPUT DATA IN THESE COLUMNS!!!
A2: Total Number of Projects: | D2: =COUNTA($B$6:$B$219) -> 98 | F2: PMs input data in these columns
A3: Number of Projects Visible: | D3: =_xlfn.AGGREGATE(3,5,B6:B219) -> 98 | F3: Chris inputs data in these columns
A5: Fiscal Year | B5: Project Number | C5: Client Name | D5: Project Name | E5: Services | F5: Project Type/Phase | G5: Project Sponsor | H5: Project Manager | I5: Project Coordinator | J5: Project Level | K5: R&D IRAP | L5: Set Budget | M5: Budget UTD | N5: Last Updated | O5: Budget Progress | P5: Scope Progress | Q5: Projected Cost | R5: Projected Over/Under | S5: Final Over/Under | T5: Final Budget Status | U5: Project Health | V5: Total Hours | W5: Billing Type | X5: Start Date | Y5: Scheduled End Date | Z5: Date of Final Invoice | AA5: Project Status | AB5: Duration | AC5: Overage Instruction | AD5: Notes
A6: =IFERROR(IF(X6="","",YEAR(X6)+IF(MONTH(X6)>=11,1,0)),"") -> 2023 | B6: 2021023 | C6: Canada | D6: MOP 2023 | E6: Wastewater | F6: Construction | G6: Jennifer | H6: Harry | I6: Josh | J6: Level 3 | L6: 801264 | M6: 345960 | N6: 2023-03-27T18:46:52 | O6: =IFERROR(M6/L6,"") -> 0.4317678069 | P6: 0.15 | Q6: =IF(P6="","-",M6+((L6*(1-P6)))) -> 1027034.4 | R6: =IFERROR(L6-Q6,"") -> -225770.4 | S6: =IFERROR(_xlfn.IFS(AA6="Ongoing", "", W6="hourly", 0,OR(L6="",M6=""),"",AA6="Complete", L6-M6,AA6<>"complete", ""),"") ->  | T6: =IF(AND('Master Project List'!$S6="",'Master Project List'!$AA6<>"Complete"),"",_xlfn.IFS(AA6<>"Complete","-",L6-M6<0,"OVER",AND(S6="",AA6="Complete"),"N/A", AND(L6="",M6=""),"", W6="","",S6="","On Budget", S6=0, "On Budget", S6="","",S6<0, "OVER",AND(S6>0, AA6="complete"), "UNDER",AND(S6>0, AA6<>"complete"),"-")) ->  | W6: Milestone | X6: 2023-01-01 | Y6: 2023-12-31 | AA6: Ongoing | AB6: =IFERROR(IF(AND(X6="",Z6=""),"", WEEKNUM(_xlfn.DAYS(Z6,X6))),"") -> 
A7: 2022 | B7: 2018019 | C7: Tajikistan | D7: 48 Avenue Paving 2022 | E7: Construction | F7: Construction | G7: Lisa | H7: Lisa | L7: 229080 | M7: 438019 | N7: 2023-03-27T18:53:10 | O7: 1.91207875 | Q7: =IF(P7="","-",M7+((L7*(1-P7)))) -> - | R7: =IFERROR(L7-Q7,"") ->  | S7: =IFERROR(_xlfn.IFS(AA7="Ongoing", "", W7="hourly", 0,OR(L7="",M7=""),"",AA7="Complete", L7-M7,AA7<>"complete", ""),"") ->  | T7: =IF(AND('Master Project List'!$S7="",'Master Project List'!$AA7<>"Complete"),"",_xlfn.IFS(AA7<>"Complete","-",L7-M7<0,"OVER",AND(S7="",AA7="Complete"),"N/A", AND(L7="",M7=""),"", W7="","",S7="","On Budget", S7=0, "On Budget", S7="","",S7<0, "OVER",AND(S7>0, AA7="complete"), "UNDER",AND(S7>0, AA7<>"complete"),"-")) ->  | W7: =_xlfn.IFS(AND(L7="",M7=""),"",AND(V7<>"",L7<>"",L7<>0),"TMU",V7="","Milestone",V7<>"","Hourly") -> Milestone | X7: 2022-06-01 | AA7: =_xlfn.IFS(X7="", "", X7<>"", IF(Z7="","Ongoing", "Complete")) -> Ongoing
A8: 2022 | B8: 2019013 | C8: Liberia | D8: Pond C EPEA | E8: Stormwater | F8: EPEA | G8: Sam | H8: Christian | J8: Level 1 | L8: 726167 | M8: 590646 | N8: 2023-03-27T18:47:16 | O8: 0.8133748848 | P8: 1 | Q8: =IF(P8="","-",M8+((L8*(1-P8)))) -> 590646 | R8: =IFERROR(L8-Q8,"") -> 135521 | S8: =IFERROR(_xlfn.IFS(AA8="Ongoing", "", W8="hourly", 0,OR(L8="",M8=""),"",AA8="Complete", L8-M8,AA8<>"complete", ""),"") ->  | T8: =IF(AND('Master Project List'!$S8="",'Master Project List'!$AA8<>"Complete"),"",_xlfn.IFS(AA8<>"Complete","-",L8-M8<0,"OVER",AND(S8="",AA8="Complete"),"N/A", AND(L8="",M8=""),"", W8="","",S8="","On Budget", S8=0, "On Budget", S8="","",S8<0, "OVER",AND(S8>0, AA8="complete"), "UNDER",AND(S8>0, AA8<>"complete"),"-")) ->  | W8: =_xlfn.IFS(AND(L8="",M8=""),"",AND(V8<>"",L8<>"",L8<>0),"TMU",V8="","Milestone",V8<>"","Hourly") -> Milestone | X8: 2022-04-01 | AA8: =_xlfn.IFS(X8="", "", X8<>"", IF(Z8="","Ongoing", "Complete")) -> Ongoing
A9: 2022 | B9: 2019013 | C9: Liechtenstein | D9: Pond C DD | E9: Stormwater | F9: DD | G9: Sam | H9: Sam | J9: Level 3 | L9: 413673 | M9: 722003 | N9: 2023-03-27T18:51:57 | O9: 1.74534717 | P9: 0.25 | Q9: =IF(P9="","-",M9+((L9*(1-P9)))) -> 1032257.75 | R9: =IFERROR(L9-Q9,"") -> -618584.75 | S9: =IFERROR(_xlfn.IFS(AA9="Ongoing", "", W9="hourly", 0,OR(L9="",M9=""),"",AA9="Complete", L9-M9,AA9<>"complete", ""),"") ->  | T9: =IF(AND('Master Project List'!$S9="",'Master Project List'!$AA9<>"Complete"),"",_xlfn.IFS(AA9<>"Complete","-",L9-M9<0,"OVER",AND(S9="",AA9="Complete"),"N/A", AND(L9="",M9=""),"", W9="","",S9="","On Budget", S9=0, "On Budget", S9="","",S9<0, "OVER",AND(S9>0, AA9="complete"), "UNDER",AND(S9>0, AA9<>"complete"),"-")) ->  | U9: Healthy | W9: =_xlfn.IFS(AND(L9="",M9=""),"",AND(V9<>"",L9<>"",L9<>0),"TMU",V9="","Milestone",V9<>"","Hourly") -> Milestone | X9: 2022-06-01 | AA9: =_xlfn.IFS(X9="", "", X9<>"", IF(Z9="","Ongoing", "Complete")) -> Ongoing
A10: 2020 | B10: 2019024 | C10: Lesotho | D10: Lands | E10: Stormwater | F10: SMDP | G10: Sahil | H10: Sahil | J10: Level 2 | L10: 792819 | M10: 190843 | O10: 0.2407144632 | P10: 1 | Q10: =IF(P10="","-",M10+((L10*(1-P10)))) -> 190843 | R10: =IFERROR(L10-Q10,"") -> 601976 | S10: =IFERROR(_xlfn.IFS(AA10="Ongoing", "", W10="hourly", 0,OR(L10="",M10=""),"",AA10="Complete", L10-M10,AA10<>"complete", ""),"") -> 601976 | T10: =IF(AND('Master Project List'!$S10="",'Master Project List'!$AA10<>"Complete"),"",_xlfn.IFS(AA10<>"Complete","-",L10-M10<0,"OVER",AND(S10="",AA10="Complete"),"N/A", AND(L10="",M10=""),"", W10="","",S10="","On Budget", S10=0, "On Budget", S10="","",S10<0, "OVER",AND(S10>0, AA10="complete"), "UNDER",AND(S10>0, AA10<>"complete"),"-")) -> UNDER | W10: =_xlfn.IFS(AND(L10="",M10=""),"",AND(V10<>"",L10<>"",L10<>0),"TMU",V10="","Milestone",V10<>"","Hourly") -> Milestone | X10: 2020-07-01 | Z10: 2021-09-01 | AA10: =_xlfn.IFS(X10="", "", X10<>"", IF(Z10="","Ongoing", "Complete")) -> Complete | AB10: 9
A11: 2023 | B11: 2019024 | C11: Laos | D11: EPEA | F11: EPEA | G11: Sam | H11: Sarah | L11: 487431 | M11: 307024 | N11: 2023-03-27T18:47:46 | O11: 0.629881973 | P11: 0 | X11: 2023-02-13
A12: 2020 | B12: 2020008 | C12: Fiji | D12: Planning Mapping (Hourly) | E12: GIS/Mapping | F12: Miscellaneous | G12: Jessica | H12: Jessica | J12: Level 1 | L12: 700097 | M12: 892141 | O12: 1.27431056 | P12: 1 | Q12: =IF(P12="","-",M12+((L12*(1-P12)))) -> 892141 | R12: =IFERROR(L12-Q12,"") -> -192044 | S12: =IFERROR(_xlfn.IFS(AA12="Ongoing", "", W12="hourly", 0,OR(L12="",M12=""),"",AA12="Complete", L12-M12,AA12<>"complete", ""),"") ->  | T12: =IF(AND('Master Project List'!$S12="",'Master Project List'!$AA12<>"Complete"),"",_xlfn.IFS(AA12<>"Complete","-",L12-M12<0,"OVER",AND(S12="",AA12="Complete"),"N/A", AND(L12="",M12=""),"", W12="","",S12="","On Budget", S12=0, "On Budget", S12="","",S12<0, "OVER",AND(S12>0, AA12="complete"), "UNDER",AND(S12>0, AA12<>"complete"),"-")) ->  | V12: 0.75 | W12: =_xlfn.IFS(AND(L12="",M12=""),"",AND(V12<>"",L12<>"",L12<>0),"TMU",V12="","Milestone",V12<>"","Hourly") -> TMU | X12: 2020-02-01 | AA12: =_xlfn.IFS(X12="", "", X12<>"", IF(Z12="","Ongoing", "Complete")) -> Ongoing
A13: 2020 | B13: 2020017 | C13: Laos | D13: Pond E | E13: Stormwater | F13: Construction | G13: Sam | H13: Harry | J13: Level 3 | L13: 452257 | M13: 870001 | N13: 2023-03-27T18:48:03 | O13: 1.923687196 | P13: 0.85 | Q13: 937839.55 | R13: -485582.55 | S13: =IFERROR(_xlfn.IFS(AA13="Ongoing", "", W13="hourly", 0,OR(L13="",M13=""),"",AA13="Complete", L13-M13,AA13<>"complete", ""),"") ->  | T13: =IF(AND('Master Project List'!$S13="",'Master Project List'!$AA13<>"Complete"),"",_xlfn.IFS(AA13<>"Complete","-",L13-M13<0,"OVER",AND(S13="",AA13="Complete"),"N/A", AND(L13="",M13=""),"", W13="","",S13="","On Budget", S13=0, "On Budget", S13="","",S13<0, "OVER",AND(S13>0, AA13="complete"), "UNDER",AND(S13>0, AA13<>"complete"),"-")) ->  | W13: =_xlfn.IFS(AND(L13="",M13=""),"",AND(V13<>"",L13<>"",L13<>0),"TMU",V13="","Milestone",V13<>"","Hourly") -> Milestone | X13: 2020-05-01 | AA13: =_xlfn.IFS(X13="", "", X13<>"", IF(Z13="","Ongoing", "Complete")) -> Ongoing
A14: 2020 | B14: 2020017 | C14: Laos | D14: Pond E OOS | E14: Stormwater | F14: MAGNA | G14: Sahil | H14: Sahil | L14: 220457 | M14: 560288 | O14: 2.54148428 | P14: 1 | Q14: 560288 | R14: -339831 | S14: =IFERROR(_xlfn.IFS(AA14="Ongoing", "", W14="hourly", 0,OR(L14="",M14=""),"",AA14="Complete", L14-M14,AA14<>"complete", ""),"") -> -339831 | T14: =IF(AND('Master Project List'!$S14="",'Master Project List'!$AA14<>"Complete"),"",_xlfn.IFS(AA14<>"Complete","-",L14-M14<0,"OVER",AND(S14="",AA14="Complete"),"N/A", AND(L14="",M14=""),"", W14="","",S14="","On Budget", S14=0, "On Budget", S14="","",S14<0, "OVER",AND(S14>0, AA14="complete"), "UNDER",AND(S14>0, AA14<>"complete"),"-")) -> OVER | V14: 307.25 | W14: =_xlfn.IFS(AND(L14="",M14=""),"",AND(V14<>"",L14<>"",L14<>0),"TMU",V14="","Milestone",V14<>"","Hourly") -> TMU | X14: 2020-05-01 | Z14: 2022-02-02 | AA14: =_xlfn.IFS(X14="", "", X14<>"", IF(Z14="","Ongoing", "Complete")) -> Complete | AB14: 40
A15: 2022 | B15: 2020019 | C15: Dominican Republic | D15: DD | E15: Stormwater | F15: DD | G15: Sam | H15: Sam | I15: Alison | J15: Level 3 | L15: 873485 | M15: 694854 | N15: 2023-03-27T18:48:36 | O15: 0.795496202 | P15: 0.7 | Q15: 956899.5 | R15: -83414.5 | S15: =IFERROR(_xlfn.IFS(AA15="Ongoing", "", W15="hourly", 0,OR(L15="",M15=""),"",AA15="Complete", L15-M15,AA15<>"complete", ""),"") ->  | T15: =IF(AND('Master Project List'!$S15="",'Master Project List'!$AA15<>"Complete"),"",_xlfn.IFS(AA15<>"Complete","-",L15-M15<0,"OVER",AND(S15="",AA15="Complete"),"N/A", AND(L15="",M15=""),"", W15="","",S15="","On Budget", S15=0, "On Budget", S15="","",S15<0, "OVER",AND(S15>0, AA15="complete"), "UNDER",AND(S15>0, AA15<>"complete"),"-")) ->  | W15: =_xlfn.IFS(AND(L15="",M15=""),"",AND(V15<>"",L15<>"",L15<>0),"TMU",V15="","Milestone",V15<>"","Hourly") ->  | X15: 2022-04-01 | Y15: 2023-04-01 | AA15: =_xlfn.IFS(X15="", "", X15<>"", IF(Z15="","Ongoing", "Complete")) -> Ongoing
A16: 2022 | B16: 2020019 | C16: Dominica | D16: OOS | E16: Stormwater | F16: DD | G16: Sam | H16: Sam | J16: Level 3 | L16: 217685 | M16: 631883 | O16: 2.902740198 | P16: 0.55 | Q16: 729841.25 | R16: -512156.25 | S16: =IFERROR(_xlfn.IFS(AA16="Ongoing", "", W16="hourly", 0,OR(L16="",M16=""),"",AA16="Complete", L16-M16,AA16<>"complete", ""),"") ->  | T16: =IF(AND('Master Project List'!$S16="",'Master Project List'!$AA16<>"Complete"),"",_xlfn.IFS(AA16<>"Complete","-",L16-M16<0,"OVER",AND(S16="",AA16="Complete"),"N/A", AND(L16="",M16=""),"", W16="","",S16="","On Budget", S16=0, "On Budget", S16="","",S16<0, "OVER",AND(S16>0, AA16="complete"), "UNDER",AND(S16>0, AA16<>"complete"),"-")) ->  | V16: 0 | W16: =_xlfn.IFS(AND(L16="",M16=""),"",AND(V16<>"",L16<>"",L16<>0),"TMU",V16="","Milestone",V16<>"","Hourly") -> TMU | X16: 2022-05-15 | Y16: 2023-08-01 | AA16: =_xlfn.IFS(X16="", "", X16<>"", IF(Z16="","Ongoing", "Complete")) -> Ongoing
A17: 2022 | B17: 2020026 | C17: Guatemala | D17: SMDP | E17: Stormwater | F17: Concept Design | G17: Sahil | H17: Jen T | J17: Level 2 | L17: 771724 | M17: 332338 | O17: 0.430643598 | Q17: - | S17: =IFERROR(_xlfn.IFS(AA17="Ongoing", "", W17="hourly", 0,OR(L17="",M17=""),"",AA17="Complete", L17-M17,AA17<>"complete", ""),"") -> 439386 | T17: =IF(AND('Master Project List'!$S17="",'Master Project List'!$AA17<>"Complete"),"",_xlfn.IFS(AA17<>"Complete","-",L17-M17<0,"OVER",AND(S17="",AA17="Complete"),"N/A", AND(L17="",M17=""),"", W17="","",S17="","On Budget", S17=0, "On Budget", S17="","",S17<0, "OVER",AND(S17>0, AA17="complete"), "UNDER",AND(S17>0, AA17<>"complete"),"-")) -> UNDER | W17: =_xlfn.IFS(AND(L17="",M17=""),"",AND(V17<>"",L17<>"",L17<>0),"TMU",V17="","Milestone",V17<>"","Hourly") -> Milestone | X17: 2022-03-01 | Y17: 2022-09-30 | Z17: 2022-08-01 | AA17: =_xlfn.IFS(X17="", "", X17<>"", IF(Z17="","Ongoing", "Complete")) -> Complete | AB17: 22
A18: 2022 | B18: 2020026 | C18: Germany | D18: DD | E18: Stormwater | F18: Stormwater | G18: Aaron | H18: Aaron | I18: JT | J18: Level 3 | L18: 790090 | M18: 686756 | N18: 2023-03-27T18:49:01 | O18: 0.8692123682 | P18: 0.05 | T18: =IF(AND('Master Project List'!$S18="",'Master Project List'!$AA18<>"Complete"),"",_xlfn.IFS(AA18<>"Complete","-",L18-M18<0,"OVER",AND(S18="",AA18="Complete"),"N/A", AND(L18="",M18=""),"", W18="","",S18="","On Budget", S18=0, "On Budget", S18="","",S18<0, "OVER",AND(S18>0, AA18="complete"), "UNDER",AND(S18>0, AA18<>"complete"),"-")) ->  | W18: Milestone | X18: 2022-10-04
A19: 2021 | B19: 2020032 | C19: Denmark | D19: Pond 2B LA Coordination | E19: Construction | F19: Construction | G19: Sahil | H19: Danika | J19: Level 3 | L19: 701640 | M19: 96703 | N19: 2023-03-27T18:55:54 | O19: 0.1378242404 | Q19: =IF(P19="","-",M19+((L19*(1-P19)))) -> - | R19: =IFERROR(L19-Q19,"") ->  | S19: =IFERROR(_xlfn.IFS(AA19="Ongoing", "", W19="hourly", 0,OR(L19="",M19=""),"",AA19="Complete", L19-M19,AA19<>"complete", ""),"") -> 604937 | T19: =IF(AND('Master Project List'!$S19="",'Master Project List'!$AA19<>"Complete"),"",_xlfn.IFS(AA19<>"Complete","-",L19-M19<0,"OVER",AND(S19="",AA19="Complete"),"N/A", AND(L19="",M19=""),"", W19="","",S19="","On Budget", S19=0, "On Budget", S19="","",S19<0, "OVER",AND(S19>0, AA19="complete"), "UNDER",AND(S19>0, AA19<>"complete"),"-")) -> UNDER | W19: =_xlfn.IFS(AND(L19="",M19=""),"",AND(V19<>"",L19<>"",L19<>0),"TMU",V19="","Milestone",V19<>"","Hourly") -> Milestone | X19: 2021-08-01 | Z19: 2023-01-01 | AA19: =_xlfn.IFS(X19="", "", X19<>"", IF(Z19="","Ongoing", "Complete")) -> Complete | AB19: 22
A20: 2022 | B20: 2020032 | C20: Denmark | D20: Pond 2B CM (2022) | E20: Construction | F20: Construction | G20: Sahil | H20: Hussein | J20: Level 3 | L20: 333549 | M20: 593465 | O20: 1.779243829 | P20: 0.7 | Q20: =IF(P20="","-",M20+((L20*(1-P20)))) -> 693529.7 | R20: =IFERROR(L20-Q20,"") -> -359980.7 | S20: =IFERROR(_xlfn.IFS(AA20="Ongoing", "", W20="hourly", 0,OR(L20="",M20=""),"",AA20="Complete", L20-M20,AA20<>"complete", ""),"") -> -259916 | T20: =IF(AND('Master Project List'!$S20="",'Master Project List'!$AA20<>"Complete"),"",_xlfn.IFS(AA20<>"Complete","-",L20-M20<0,"OVER",AND(S20="",AA20="Complete"),"N/A", AND(L20="",M20=""),"", W20="","",S20="","On Budget", S20=0, "On Budget", S20="","",S20<0, "OVER",AND(S20>0, AA20="complete"), "UNDER",AND(S20>0, AA20<>"complete"),"-")) -> OVER | W20: =_xlfn.IFS(AND(L20="",M20=""),"",AND(V20<>"",L20<>"",L20<>0),"TMU",V20="","Milestone",V20<>"","Hourly") -> Milestone | X20: 2022-01-01 | Y20: 2022-12-31 | Z20: 2022-12-01 | AA20: =_xlfn.IFS(X20="", "", X20<>"", IF(Z20="","Ongoing", "Complete")) -> Complete | AB20: 48
A21: 2023 | B21: 2020032 | C21: Dominican Republic | D21: Pond 2B CM (2023) | E21: Construction | F21: Construction | G21: Sam | H21: Harry | I21: Hannah | J21: Level 3 | L21: 494327 | M21: 950788 | O21: 1.923398884 | W21: Milestone | X21: 2023-01-01 | Y21: 2023-12-31 | AA21: Ongoing
A22: 2021 | B22: 2020036 | C22: Switzerland | D22: Drought Resilient LID - Phase 2 | E22: Stormwater | F22: Miscellaneous | G22: Anton | H22: Jen T | J22: Level 1 | L22: 917051 | M22: 418982 | O22: 0.4568797155 | Q22: =IF(P22="","-",M22+((L22*(1-P22)))) -> - | R22: =IFERROR(L22-Q22,"") ->  | S22: =IFERROR(_xlfn.IFS(AA22="Ongoing", "", W22="hourly", 0,OR(L22="",M22=""),"",AA22="Complete", L22-M22,AA22<>"complete", ""),"") -> 498069 | T22: =IF(AND('Master Project List'!$S22="",'Master Project List'!$AA22<>"Complete"),"",_xlfn.IFS(AA22<>"Complete","-",L22-M22<0,"OVER",AND(S22="",AA22="Complete"),"N/A", AND(L22="",M22=""),"", W22="","",S22="","On Budget", S22=0, "On Budget", S22="","",S22<0, "OVER",AND(S22>0, AA22="complete"), "UNDER",AND(S22>0, AA22<>"complete"),"-")) -> UNDER | V22: 0 | W22: =_xlfn.IFS(AND(L22="",M22=""),"",AND(V22<>"",L22<>"",L22<>0),"TMU",V22="","Milestone",V22<>"","Hourly") -> TMU | X22: 2021-01-01 | Y22: 2021-06-04 | Z22: 2022-10-01 | AA22: Complete | AB22: 40
A23: 2022 | B23: 2020039 | C23: Liberia | D23: Pond G Construction | E23: Construction | F23: Construction | G23: Sam | H23: Harry | I23: Alison | J23: Level 2 | L23: 936014 | M23: 73435 | N23: 2023-03-27T18:49:09 | O23: 0.07845502311 | P23: 0.6 | Q23: 447840.6 | R23: 488173.4 | S23: =IFERROR(_xlfn.IFS(AA23="Ongoing", "", W23="hourly", 0,OR(L23="",M23=""),"",AA23="Complete", L23-M23,AA23<>"complete", ""),"") ->  | T23: =IF(AND('Master Project List'!$S23="",'Master Project List'!$AA23<>"Complete"),"",_xlfn.IFS(AA23<>"Complete","-",L23-M23<0,"OVER",AND(S23="",AA23="Complete"),"N/A", AND(L23="",M23=""),"", W23="","",S23="","On Budget", S23=0, "On Budget", S23="","",S23<0, "OVER",AND(S23>0, AA23="complete"), "UNDER",AND(S23>0, AA23<>"complete"),"-")) ->  | U23: Not Awesome | W23: =_xlfn.IFS(AND(L23="",M23=""),"",AND(V23<>"",L23<>"",L23<>0),"TMU",V23="","Milestone",V23<>"","Hourly") -> Milestone | X23: 2022-04-01 | AA23: =_xlfn.IFS(X23="", "", X23<>"", IF(Z23="","Ongoing", "Complete")) -> Ongoing
A24: 2022 | B24: 2021001 | C24: Lithuania | D24: Rangeview | E24: Stormwater | F24: EPEA | G24: Sahil | H24: Christian | J24: Level 1 | L24: 340050 | M24: 104246 | O24: 0.3065607999 | P24: 1 | Q24: 104246 | R24: 235804 | S24: =IFERROR(_xlfn.IFS(AA24="Ongoing", "", W24="hourly", 0,OR(L24="",M24=""),"",AA24="Complete", L24-M24,AA24<>"complete", ""),"") -> 235804 | T24: =IF(AND('Master Project List'!$S24="",'Master Project List'!$AA24<>"Complete"),"",_xlfn.IFS(AA24<>"Complete","-",L24-M24<0,"OVER",AND(S24="",AA24="Complete"),"N/A", AND(L24="",M24=""),"", W24="","",S24="","On Budget", S24=0, "On Budget", S24="","",S24<0, "OVER",AND(S24>0, AA24="complete"), "UNDER",AND(S24>0, AA24<>"complete"),"-")) -> UNDER | W24: =_xlfn.IFS(AND(L24="",M24=""),"",AND(V24<>"",L24<>"",L24<>0),"TMU",V24="","Milestone",V24<>"","Hourly") -> Milestone | X24: 2022-04-01 | Y24: 2023-02-17 | Z24: 2023-02-01 | AA24: =_xlfn.IFS(X24="", "", X24<>"", IF(Z24="","Ongoing", "Complete")) -> Complete | AB24: 44 | AD24: Project is done, but not fully invoiced.
A25: 2023 | B25: 2021006 | C25: Central African Republic | D25: CM Services | E25: Wastewater | F25: Construction | G25: Jennifer | H25: Harry | I25: JT | J25: Level 3 | L25: 819037 | M25: 258244 | N25: 2023-03-27T18:55:09 | O25: 0.3153019949 | P25: 0.25 | Q25: 872521.75 | R25: -53484.75 | U25: Healthy | W25: Milestone | X25: 2022-12-19
A26: 2022 | B26: 2021006 | C26: Chad | D26: Pilot Facility (2022) | E26: Wastewater | F26: DD | G26: Jenn M | H26: Jen T | J26: Level 3 | L26: 314439 | M26: 102793 | O26: 0.3269091938 | P26: 0.6 | Q26: 228568.6 | R26: 85870.4 | S26: =IFERROR(_xlfn.IFS(AA26="Ongoing", "", W26="hourly", 0,OR(L26="",M26=""),"",AA26="Complete", L26-M26,AA26<>"complete", ""),"") -> 211646 | T26: =IF(AND('Master Project List'!$S26="",'Master Project List'!$AA26<>"Complete"),"",_xlfn.IFS(AA26<>"Complete","-",L26-M26<0,"OVER",AND(S26="",AA26="Complete"),"N/A", AND(L26="",M26=""),"", W26="","",S26="","On Budget", S26=0, "On Budget", S26="","",S26<0, "OVER",AND(S26>0, AA26="complete"), "UNDER",AND(S26>0, AA26<>"complete"),"-")) -> UNDER | W26: =_xlfn.IFS(AND(L26="",M26=""),"",AND(V26<>"",L26<>"",L26<>0),"TMU",V26="","Milestone",V26<>"","Hourly") -> Milestone | X26: 2022-01-01 | Y26: 2022-12-31 | Z26: 2023-12-22 | AA26: =_xlfn.IFS(X26="", "", X26<>"", IF(Z26="","Ongoing", "Complete")) -> Complete | AB26: 51
A27: 2021 | B27: 2021007 | C27: Denmark | D27: Pond 2B - WIS | F27: Miscellaneous | G27: Sahil | H27: Hussein | J27: Level 2 | L27: 774659 | M27: 72066 | O27: 0.09302932 | Q27: - | S27: =IFERROR(_xlfn.IFS(AA27="Ongoing", "", W27="hourly", 0,OR(L27="",M27=""),"",AA27="Complete", L27-M27,AA27<>"complete", ""),"") -> 702593 | T27: =IF(AND('Master Project List'!$S27="",'Master Project List'!$AA27<>"Complete"),"",_xlfn.IFS(AA27<>"Complete","-",L27-M27<0,"OVER",AND(S27="",AA27="Complete"),"N/A", AND(L27="",M27=""),"", W27="","",S27="","On Budget", S27=0, "On Budget", S27="","",S27<0, "OVER",AND(S27>0, AA27="complete"), "UNDER",AND(S27>0, AA27<>"complete"),"-")) -> UNDER | W27: =_xlfn.IFS(AND(L27="",M27=""),"",AND(V27<>"",L27<>"",L27<>0),"TMU",V27="","Milestone",V27<>"","Hourly") -> Milestone | X27: 2021-01-01 | Y27: 2021-03-12 | Z27: 2021-04-01 | AA27: =_xlfn.IFS(X27="", "", X27<>"", IF(Z27="","Ongoing", "Complete")) -> Complete | AB27: 13
A28: 2021 | B28: 2021019 | C28: Latvia | D28: Phase 19 SWMR | E28: Stormwater | F28: SWMR | G28: Sahil | H28: Christian | J28: Level 1 | L28: 566258 | M28: 590817 | O28: 1.04337069 | Q28: - | S28: =IFERROR(_xlfn.IFS(AA28="Ongoing", "", W28="hourly", 0,OR(L28="",M28=""),"",AA28="Complete", L28-M28,AA28<>"complete", ""),"") -> -24559 | T28: =IF(AND('Master Project List'!$S28="",'Master Project List'!$AA28<>"Complete"),"",_xlfn.IFS(AA28<>"Complete","-",L28-M28<0,"OVER",AND(S28="",AA28="Complete"),"N/A", AND(L28="",M28=""),"", W28="","",S28="","On Budget", S28=0, "On Budget", S28="","",S28<0, "OVER",AND(S28>0, AA28="complete"), "UNDER",AND(S28>0, AA28<>"complete"),"-")) -> OVER | W28: =_xlfn.IFS(AND(L28="",M28=""),"",AND(V28<>"",L28<>"",L28<>0),"TMU",V28="","Milestone",V28<>"","Hourly") -> Milestone | X28: 2021-05-01 | Y28: 2021-06-11 | Z28: 2022-06-01 | AA28: =_xlfn.IFS(X28="", "", X28<>"", IF(Z28="","Ongoing", "Complete")) -> Complete | AB28: 5
A29: 2022 | B29: 2021023 | C29: Costa Rica | D29: MOP 2022 | E29: Wastewater | F29: Construction | G29: Jenn M | H29: Hussein | J29: Level 3 | L29: 561381 | M29: 590110 | O29: 1.051175583 | P29: 0.85 | Q29: 674317.15 | R29: -112936.15 | S29: =IFERROR(_xlfn.IFS(AA29="Ongoing", "", W29="hourly", 0,OR(L29="",M29=""),"",AA29="Complete", L29-M29,AA29<>"complete", ""),"") -> -28729 | T29: =IF(AND('Master Project List'!$S29="",'Master Project List'!$AA29<>"Complete"),"",_xlfn.IFS(AA29<>"Complete","-",L29-M29<0,"OVER",AND(S29="",AA29="Complete"),"N/A", AND(L29="",M29=""),"", W29="","",S29="","On Budget", S29=0, "On Budget", S29="","",S29<0, "OVER",AND(S29>0, AA29="complete"), "UNDER",AND(S29>0, AA29<>"complete"),"-")) -> OVER | U29: Healthy | W29: =_xlfn.IFS(AND(L29="",M29=""),"",AND(V29<>"",L29<>"",L29<>0),"TMU",V29="","Milestone",V29<>"","Hourly") -> Milestone | X29: 2022-07-16 | Y29: 2022-12-31 | Z29: 2022-12-22 | AA29: =_xlfn.IFS(X29="", "", X29<>"", IF(Z29="","Ongoing", "Complete")) -> Complete | AB29: 23
A30: 2021 | B30: 2021026 | C30: Greece | D30: Sollair Rezoning | F30: SMDP | G30: Sam | H30: Sam | J30: Level 2 | L30: 687075 | M30: 684647 | O30: 0.9964661791 | Q30: - | S30: =IFERROR(_xlfn.IFS(AA30="Ongoing", "", W30="hourly", 0,OR(L30="",M30=""),"",AA30="Complete", L30-M30,AA30<>"complete", ""),"") ->  | T30: =IF(AND('Master Project List'!$S30="",'Master Project List'!$AA30<>"Complete"),"",_xlfn.IFS(AA30<>"Complete","-",L30-M30<0,"OVER",AND(S30="",AA30="Complete"),"N/A", AND(L30="",M30=""),"", W30="","",S30="","On Budget", S30=0, "On Budget", S30="","",S30<0, "OVER",AND(S30>0, AA30="complete"), "UNDER",AND(S30>0, AA30<>"complete"),"-")) ->  | W30: =_xlfn.IFS(AND(L30="",M30=""),"",AND(V30<>"",L30<>"",L30<>0),"TMU",V30="","Milestone",V30<>"","Hourly") -> Milestone | X30: 2021-05-01 | AA30: =_xlfn.IFS(X30="", "", X30<>"", IF(Z30="","Ongoing", "Complete")) -> Ongoing
A31: 2022 | B31: 2021027 | C31: Tunisia | D31: Water Reuse Plan | F31: Concept Design | G31: Aaron | H31: JT | J31: Level 1 | L31: 315772 | M31: 289342 | N31: 2023-03-27T18:50:01 | O31: 0.9163003686 | Q31: - | S31: =IFERROR(_xlfn.IFS(AA31="Ongoing", "", W31="hourly", 0,OR(L31="",M31=""),"",AA31="Complete", L31-M31,AA31<>"complete", ""),"") ->  | T31: =IF(AND('Master Project List'!$S31="",'Master Project List'!$AA31<>"Complete"),"",_xlfn.IFS(AA31<>"Complete","-",L31-M31<0,"OVER",AND(S31="",AA31="Complete"),"N/A", AND(L31="",M31=""),"", W31="","",S31="","On Budget", S31=0, "On Budget", S31="","",S31<0, "OVER",AND(S31>0, AA31="complete"), "UNDER",AND(S31>0, AA31<>"complete"),"-")) ->  | W31: =_xlfn.IFS(AND(L31="",M31=""),"",AND(V31<>"",L31<>"",L31<>0),"TMU",V31="","Milestone",V31<>"","Hourly") -> Milestone | X31: 2022-05-30 | AA31: =_xlfn.IFS(X31="", "", X31<>"", IF(Z31="","Ongoing", "Complete")) -> Ongoing
A32: 2021 | B32: 2021029 | C32: Lebanon | D32: Phase 27 | E32: Stormwater | F32: Work Plan/Proposal | G32: Sahil | H32: Christian | J32: Level 1 | L32: 35035 | M32: 38846 | O32: 1.108776937 | Q32: - | S32: =IFERROR(_xlfn.IFS(AA32="Ongoing", "", W32="hourly", 0,OR(L32="",M32=""),"",AA32="Complete", L32-M32,AA32<>"complete", ""),"") -> -3811 | T32: =IF(AND('Master Project List'!$S32="",'Master Project List'!$AA32<>"Complete"),"",_xlfn.IFS(AA32<>"Complete","-",L32-M32<0,"OVER",AND(S32="",AA32="Complete"),"N/A", AND(L32="",M32=""),"", W32="","",S32="","On Budget", S32=0, "On Budget", S32="","",S32<0, "OVER",AND(S32>0, AA32="complete"), "UNDER",AND(S32>0, AA32<>"complete"),"-")) -> OVER | W32: =_xlfn.IFS(AND(L32="",M32=""),"",AND(V32<>"",L32<>"",L32<>0),"TMU",V32="","Milestone",V32<>"","Hourly") -> Milestone | X32: 2021-02-01 | Z32: 2022-03-01 | AA32: =_xlfn.IFS(X32="", "", X32<>"", IF(Z32="","Ongoing", "Complete")) -> Complete | AB32: 5
A33: 2022 | B33: 2021051 | C33: Kenya | D33: SWM Update Ph 2 | E33: Stormwater | F33: Stormwater | G33: Aaron | H33: Jessica | I33: Hannah | J33: Level 1 | L33: 127761 | M33: 709712 | O33: 5.554997221 | P33: 0.7 | Q33: 748040.3 | R33: -620279.3 | S33: =IFERROR(_xlfn.IFS(AA33="Ongoing", "", W33="hourly", 0,OR(L33="",M33=""),"",AA33="Complete", L33-M33,AA33<>"complete", ""),"") ->  | T33: =IF(AND('Master Project List'!$S33="",'Master Project List'!$AA33<>"Complete"),"",_xlfn.IFS(AA33<>"Complete","-",L33-M33<0,"OVER",AND(S33="",AA33="Complete"),"N/A", AND(L33="",M33=""),"", W33="","",S33="","On Budget", S33=0, "On Budget", S33="","",S33<0, "OVER",AND(S33>0, AA33="complete"), "UNDER",AND(S33>0, AA33<>"complete"),"-")) ->  | W33: =_xlfn.IFS(AND(L33="",M33=""),"",AND(V33<>"",L33<>"",L33<>0),"TMU",V33="","Milestone",V33<>"","Hourly") -> Milestone | X33: 2021-11-29 | AA33: =_xlfn.IFS(X33="", "", X33<>"", IF(Z33="","Ongoing", "Complete")) -> Ongoing
A34: 2022 | B34: 2021052 | C34: Denmark | D34: Irrigation Deployment - 2022 | E34: Stormwater | F34: Construction | G34: Anton | H34: Hussein | J34: Level 1 | L34: 956103 | M34: 735455 | O34: 0.7692215169 | Q34: - | S34: =IFERROR(_xlfn.IFS(AA34="Ongoing", "", W34="hourly", 0,OR(L34="",M34=""),"",AA34="Complete", L34-M34,AA34<>"complete", ""),"") -> 220648 | T34: =IF(AND('Master Project List'!$S34="",'Master Project List'!$AA34<>"Complete"),"",_xlfn.IFS(AA34<>"Complete","-",L34-M34<0,"OVER",AND(S34="",AA34="Complete"),"N/A", AND(L34="",M34=""),"", W34="","",S34="","On Budget", S34=0, "On Budget", S34="","",S34<0, "OVER",AND(S34>0, AA34="complete"), "UNDER",AND(S34>0, AA34<>"complete"),"-")) -> UNDER | V34: 163 | W34: =_xlfn.IFS(AND(L34="",M34=""),"",AND(V34<>"",L34<>"",L34<>0),"TMU",V34="","Milestone",V34<>"","Hourly") -> TMU | X34: 2022-05-01 | Z34: 2022-10-01 | AA34: =_xlfn.IFS(X34="", "", X34<>"", IF(Z34="","Ongoing", "Complete")) -> Complete | AB34: 22
B35: 2021052 | C35: Dominica | D35: Irrigation Deployment - 2023 | E35: Stormwater | F35: Construction | G35: Aaron | H35: Harry | J35: Level 1 | L35: 267276 | M35: 642586
A36: 2021 | B36: 2021055 | C36: Wurtemberg | D36: Waterbridge | E36: Stormwater | F36: Concept Design | G36: Sam | H36: Sam | J36: Level 2 | L36: 125461 | M36: 487746 | O36: =IFERROR(M36/L36,"") -> 3.887630419 | Q36: =IF(P36="","-",M36+((L36*(1-P36)))) -> - | R36: =IFERROR(L36-Q36,"") ->  | S36: =IFERROR(_xlfn.IFS(AA36="Ongoing", "", W36="hourly", 0,OR(L36="",M36=""),"",AA36="Complete", L36-M36,AA36<>"complete", ""),"") ->  | T36: =IF(AND('Master Project List'!$S36="",'Master Project List'!$AA36<>"Complete"),"",_xlfn.IFS(AA36<>"Complete","-",L36-M36<0,"OVER",AND(S36="",AA36="Complete"),"N/A", AND(L36="",M36=""),"", W36="","",S36="","On Budget", S36=0, "On Budget", S36="","",S36<0, "OVER",AND(S36>0, AA36="complete"), "UNDER",AND(S36>0, AA36<>"complete"),"-")) ->  | W36: =_xlfn.IFS(AND(L36="",M36=""),"",AND(V36<>"",L36<>"",L36<>0),"TMU",V36="","Milestone",V36<>"","Hourly") -> Milestone | X36: 2021-09-01 | AA36: =_xlfn.IFS(X36="", "", X36<>"", IF(Z36="","Ongoing", "Complete")) -> Ongoing
A37: 2021 | B37: 2021056 | C37: Zimbabwe | D37: Lands | E37: Stormwater | F37: Concept Design | G37: Sam | H37: Sam | I37: Hannah | J37: Level 2 | L37: 781473 | M37: 6456 | O37: 0.008261321888 | P37: 0.9 | Q37: =IF(P37="","-",M37+((L37*(1-P37)))) -> 84603.3 | R37: =IFERROR(L37-Q37,"") -> 696869.7 | S37: =IFERROR(_xlfn.IFS(AA37="Ongoing", "", W37="hourly", 0,OR(L37="",M37=""),"",AA37="Complete", L37-M37,AA37<>"complete", ""),"") ->  | T37: =IF(AND('Master Project List'!$S37="",'Master Project List'!$AA37<>"Complete"),"",_xlfn.IFS(AA37<>"Complete","-",L37-M37<0,"OVER",AND(S37="",AA37="Complete"),"N/A", AND(L37="",M37=""),"", W37="","",S37="","On Budget", S37=0, "On Budget", S37="","",S37<0, "OVER",AND(S37>0, AA37="complete"), "UNDER",AND(S37>0, AA37<>"complete"),"-")) ->  | W37: =_xlfn.IFS(AND(L37="",M37=""),"",AND(V37<>"",L37<>"",L37<>0),"TMU",V37="","Milestone",V37<>"","Hourly") -> Milestone | X37: 2021-09-01 | AA37: =_xlfn.IFS(X37="", "", X37<>"", IF(Z37="","Ongoing", "Complete")) -> Ongoing
A38: =IFERROR(IF(X38="","",YEAR(X38)+IF(MONTH(X38)>=11,1,0)),"") -> 2022 | B38: 2021058 | C38: Qatar | D38: Glacier | E38: Stormwater | F38: Concept Design | G38: Aaron | H38: Sam | I38: Hannah | J38: Level 2 | L38: 703966 | M38: 860692 | O38: 1.222632911 | P38: 0.5 | Q38: =IF(P38="","-",M38+((L38*(1-P38)))) -> 1212675 | R38: =IFERROR(L38-Q38,"") -> -508709 | S38: =IFERROR(_xlfn.IFS(AA38="Ongoing", "", W38="hourly", 0,OR(L38="",M38=""),"",AA38="Complete", L38-M38,AA38<>"complete", ""),"") ->  | T38: =IF(AND('Master Project List'!$S38="",'Master Project List'!$AA38<>"Complete"),"",_xlfn.IFS(AA38<>"Complete","-",L38-M38<0,"OVER",AND(S38="",AA38="Complete"),"N/A", AND(L38="",M38=""),"", W38="","",S38="","On Budget", S38=0, "On Budget", S38="","",S38<0, "OVER",AND(S38>0, AA38="complete"), "UNDER",AND(S38>0, AA38<>"complete"),"-")) ->  | W38: =_xlfn.IFS(AND(L38="",M38=""),"",AND(V38<>"",L38<>"",L38<>0),"TMU",V38="","Milestone",V38<>"","Hourly") -> Milestone | X38: 2022-03-01 | AA38: =_xlfn.IFS(X38="", "", X38<>"", IF(Z38="","Ongoing", "Complete")) -> Ongoing | AB38: =IFERROR(IF(AND(X38="",Z38=""),"", WEEKNUM(_xlfn.DAYS(Z38,X38))),"") -> 
A39: 2022 | B39: 2021062 | C39: Tanzania | D39: Support for Municipal Engineer | E39: Miscellaneous | F39: Miscellaneous | G39: Jenn M | H39: Jenn M | L39: 684197 | M39: 510727 | O39: 0.7464619108 | T39: =IF(AND('Master Project List'!$S39="",'Master Project List'!$AA39<>"Complete"),"",_xlfn.IFS(AA39<>"Complete","-",L39-M39<0,"OVER",AND(S39="",AA39="Complete"),"N/A", AND(L39="",M39=""),"", W39="","",S39="","On Budget", S39=0, "On Budget", S39="","",S39<0, "OVER",AND(S39>0, AA39="complete"), "UNDER",AND(S39>0, AA39<>"complete"),"-")) -> N/A | W39: TMU | X39: 2021-12-01 | Y39: 2022-03-31 | Z39: 2022-02-01 | AA39: =_xlfn.IFS(X39="", "", X39<>"", IF(Z39="","Ongoing", "Complete")) -> Complete | AB39: 9
A40: 2022 | B40: 2021064 | C40: Trinidad | D40: 3nd Party Engineering Support | E40: Miscellaneous | F40: Miscellaneous | G40: Jennifer | H40: JT | J40: Level 2 | L40: 419476 | M40: 716869 | O40: 1.708963087 | Q40: =IF(P40="","-",M40+((L40*(1-P40)))) -> - | R40: =IFERROR(L40-Q40,"") ->  | S40: =IFERROR(_xlfn.IFS(AA40="Ongoing", "", W40="hourly", 0,OR(L40="",M40=""),"",AA40="Complete", L40-M40,AA40<>"complete", ""),"") ->  | T40: =IF(AND('Master Project List'!$S40="",'Master Project List'!$AA40<>"Complete"),"",_xlfn.IFS(AA40<>"Complete","-",L40-M40<0,"OVER",AND(S40="",AA40="Complete"),"N/A", AND(L40="",M40=""),"", W40="","",S40="","On Budget", S40=0, "On Budget", S40="","",S40<0, "OVER",AND(S40>0, AA40="complete"), "UNDER",AND(S40>0, AA40<>"complete"),"-")) ->  | W40: Milestone | X40: 2021-12-01 | Y40: 2022-03-31 | AA40: =_xlfn.IFS(X40="", "", X40<>"", IF(Z40="","Ongoing", "Complete")) -> Ongoing
A41: 2022 | B41: 2021064 | C41: Tunisia | D41: 3rd Party Engineering Support | E41: Miscellaneous | F41: Miscellaneous | G41: Jennifer | H41: JT | J41: Level 2 | L41: 966425 | M41: 746467 | O41: 0.7724003415 | Q41: =IF(P41="","-",M41+((L41*(1-P41)))) -> - | R41: =IFERROR(L41-Q41,"") ->  | S41: =IFERROR(_xlfn.IFS(AA41="Ongoing", "", W41="hourly", 0,OR(L41="",M41=""),"",AA41="Complete", L41-M41,AA41<>"complete", ""),"") ->  | T41: =IF(AND('Master Project List'!$S41="",'Master Project List'!$AA41<>"Complete"),"",_xlfn.IFS(AA41<>"Complete","-",L41-M41<0,"OVER",AND(S41="",AA41="Complete"),"N/A", AND(L41="",M41=""),"", W41="","",S41="","On Budget", S41=0, "On Budget", S41="","",S41<0, "OVER",AND(S41>0, AA41="complete"), "UNDER",AND(S41>0, AA41<>"complete"),"-")) ->  | V41: 28 | W41: =_xlfn.IFS(AND(L41="",M41=""),"",AND(V41<>"",L41<>"",L41<>0),"TMU",V41="","Milestone",V41<>"","Hourly") -> TMU | X41: 2021-12-01 | Y41: 2023-01-01 | AA41: =_xlfn.IFS(X41="", "", X41<>"", IF(Z41="","Ongoing", "Complete")) -> Ongoing
A42: 2021 | B42: 2021068 | C42: Denmark | D42: Pond 2A M&M 2021/2022 | E42: Stormwater | F42: M & M | G42: Anton | H42: Jen T | J42: Level 2 | L42: 277266 | M42: 282546 | O42: 1.019043085 | Q42: =IF(P42="","-",M42+((L42*(1-P42)))) -> - | R42: =IFERROR(L42-Q42,"") ->  | S42: =IFERROR(_xlfn.IFS(AA42="Ongoing", "", W42="hourly", 0,OR(L42="",M42=""),"",AA42="Complete", L42-M42,AA42<>"complete", ""),"") -> -5280 | T42: =IF(AND('Master Project List'!$S42="",'Master Project List'!$AA42<>"Complete"),"",_xlfn.IFS(AA42<>"Complete","-",L42-M42<0,"OVER",AND(S42="",AA42="Complete"),"N/A", AND(L42="",M42=""),"", W42="","",S42="","On Budget", S42=0, "On Budget", S42="","",S42<0, "OVER",AND(S42>0, AA42="complete"), "UNDER",AND(S42>0, AA42<>"complete"),"-")) -> OVER | W42: =_xlfn.IFS(AND(L42="",M42=""),"",AND(V42<>"",L42<>"",L42<>0),"TMU",V42="","Milestone",V42<>"","Hourly") -> Milestone | X42: 2021-09-01 | Y42: 2022-11-30 | Z42: 2023-11-22 | AA42: =_xlfn.IFS(X42="", "", X42<>"", IF(Z42="","Ongoing", "Complete")) -> Complete | AB42: 12
A43: 2023 | B43: 2021068 | C43: Dominica | D43: Pond 2A M&M 2023 | E43: Stormwater | F43: M & M | G43: Sam | H43: Harry | I43: Hannah | J43: Level 2 | L43: 278937 | M43: 738684 | W43: Milestone | X43: 2023-01-01 | Y43: 2023-12-31 | AA43: Ongoing
A44: 2021 | B44: 2021069 | C44: Lithuania | D44: Phase 30 SWMR | E44: Stormwater | F44: SWMR | G44: Sahil | H44: Sahil | L44: 906812 | M44: 507961 | O44: =IFERROR(M44/L44,"") -> 0.5601613124 | Q44: =IF(P44="","-",M44+((L44*(1-P44)))) -> - | R44: =IFERROR(L44-Q44,"") ->  | S44: =IFERROR(_xlfn.IFS(AA44="Ongoing", "", W44="hourly", 0,OR(L44="",M44=""),"",AA44="Complete", L44-M44,AA44<>"complete", ""),"") -> 398851 | T44: =IF(AND('Master Project List'!$S44="",'Master Project List'!$AA44<>"Complete"),"",_xlfn.IFS(AA44<>"Complete","-",L44-M44<0,"OVER",AND(S44="",AA44="Complete"),"N/A", AND(L44="",M44=""),"", W44="","",S44="","On Budget", S44=0, "On Budget", S44="","",S44<0, "OVER",AND(S44>0, AA44="complete"), "UNDER",AND(S44>0, AA44<>"complete"),"-")) -> UNDER | W44: =_xlfn.IFS(AND(L44="",M44=""),"",AND(V44<>"",L44<>"",L44<>0),"TMU",V44="","Milestone",V44<>"","Hourly") -> Milestone | X44: 2021-08-01 | Y44: 2021-08-31 | Z44: 2022-02-03 | AA44: =_xlfn.IFS(X44="", "", X44<>"", IF(Z44="","Ongoing", "Complete")) -> Complete | AB44: 27
A45: 2022 | B45: 2021071 | C45: Tajikistan | D45: Concept Design | E45: Stormwater | F45: Concept Design | G45: Sahil | H45: Sarah | J45: Level 2 | L45: 39744 | M45: 531053 | O45: 13.36184078 | P45: 1 | Q45: 531053 | R45: -491309 | S45: =IFERROR(_xlfn.IFS(AA45="Ongoing", "", W45="hourly", 0,OR(L45="",M45=""),"",AA45="Complete", L45-M45,AA45<>"complete", ""),"") -> -491309 | T45: =IF(AND('Master Project List'!$S45="",'Master Project List'!$AA45<>"Complete"),"",_xlfn.IFS(AA45<>"Complete","-",L45-M45<0,"OVER",AND(S45="",AA45="Complete"),"N/A", AND(L45="",M45=""),"", W45="","",S45="","On Budget", S45=0, "On Budget", S45="","",S45<0, "OVER",AND(S45>0, AA45="complete"), "UNDER",AND(S45>0, AA45<>"complete"),"-")) -> OVER | U45: Healthy | V45: 0 | W45: =_xlfn.IFS(AND(L45="",M45=""),"",AND(V45<>"",L45<>"",L45<>0),"TMU",V45="","Milestone",V45<>"","Hourly") -> TMU | X45: 2022-02-28 | Y45: 2022-12-01 | Z45: 2023-08-22 | AA45: =_xlfn.IFS(X45="", "", X45<>"", IF(Z45="","Ongoing", "Complete")) -> Complete | AB45: 26 | AD45: This project is hourly
A46: 2022 | B46: 2021071 | C46: Tajikistan | D46: SMDP | E46: Stormwater | F46: SMDP | G46: Aaron | H46: Sarah | I46: Alison | J46: Level 2 | L46: 349762 | M46: 250055 | O46: 0.7149290089 | P46: 0.65 | Q46: 372471.7 | R46: -22709.7 | S46: =IFERROR(_xlfn.IFS(AA46="Ongoing", "", W46="hourly", 0,OR(L46="",M46=""),"",AA46="Complete", L46-M46,AA46<>"complete", ""),"") ->  | T46: =IF(AND('Master Project List'!$S46="",'Master Project List'!$AA46<>"Complete"),"",_xlfn.IFS(AA46<>"Complete","-",L46-M46<0,"OVER",AND(S46="",AA46="Complete"),"N/A", AND(L46="",M46=""),"", W46="","",S46="","On Budget", S46=0, "On Budget", S46="","",S46<0, "OVER",AND(S46>0, AA46="complete"), "UNDER",AND(S46>0, AA46<>"complete"),"-")) ->  | U46: Healthy | W46: =_xlfn.IFS(AND(L46="",M46=""),"",AND(V46<>"",L46<>"",L46<>0),"TMU",V46="","Milestone",V46<>"","Hourly") -> Milestone | X46: 2022-02-28 | Y46: 2023-03-01 | AA46: =_xlfn.IFS(X46="", "", X46<>"", IF(Z46="","Ongoing", "Complete")) -> Ongoing
A47: 2022 | B47: 2021072 | C47: Luxembourg | D47: Phase 6 | E47: Stormwater | F47: Miscellaneous | G47: Sahil | H47: Sahil | L47: 645088 | M47: 695049 | O47: 1.077448348 | Q47: - | S47: =IFERROR(_xlfn.IFS(AA47="Ongoing", "", W47="hourly", 0,OR(L47="",M47=""),"",AA47="Complete", L47-M47,AA47<>"complete", ""),"") -> -49961 | T47: =IF(AND('Master Project List'!$S47="",'Master Project List'!$AA47<>"Complete"),"",_xlfn.IFS(AA47<>"Complete","-",L47-M47<0,"OVER",AND(S47="",AA47="Complete"),"N/A", AND(L47="",M47=""),"", W47="","",S47="","On Budget", S47=0, "On Budget", S47="","",S47<0, "OVER",AND(S47>0, AA47="complete"), "UNDER",AND(S47>0, AA47<>"complete"),"-")) -> OVER | W47: =_xlfn.IFS(AND(L47="",M47=""),"",AND(V47<>"",L47<>"",L47<>0),"TMU",V47="","Milestone",V47<>"","Hourly") -> Milestone | X47: 2022-01-22 | Z47: Closed | AA47: =_xlfn.IFS(X47="", "", X47<>"", IF(Z47="","Ongoing", "Complete")) -> Complete
A48: 2022 | B48: 2022001 | C48: Argentina | D48: Shoreline Treatment | E48: Miscellaneous | F48: RFP | G48: Anton | H48: Anton | L48: 752938 | M48: 725167 | O48: 0.963116485 | Q48: - | S48: =IFERROR(_xlfn.IFS(AA48="Ongoing", "", W48="hourly", 0,OR(L48="",M48=""),"",AA48="Complete", L48-M48,AA48<>"complete", ""),"") -> 27771 | T48: =IF(AND('Master Project List'!$S48="",'Master Project List'!$AA48<>"Complete"),"",_xlfn.IFS(AA48<>"Complete","-",L48-M48<0,"OVER",AND(S48="",AA48="Complete"),"N/A", AND(L48="",M48=""),"", W48="","",S48="","On Budget", S48=0, "On Budget", S48="","",S48<0, "OVER",AND(S48>0, AA48="complete"), "UNDER",AND(S48>0, AA48<>"complete"),"-")) -> UNDER | W48: =_xlfn.IFS(AND(L48="",M48=""),"",AND(V48<>"",L48<>"",L48<>0),"TMU",V48="","Milestone",V48<>"","Hourly") -> Milestone | X48: 2022-02-23 | Z48: 2022-06-01 | AA48: =_xlfn.IFS(X48="", "", X48<>"", IF(Z48="","Ongoing", "Complete")) -> Complete | AB48: 14 | AE48: IF A PROJECT IS HOURLY, PLEASE ADD THE CURRENT TOTAL HOURS TO CHANGE THE BILLING TYPE
A49: 2022 | B49: 2022004 | C49: Lithuania | D49: Phase 33 SWMR | E49: Stormwater | F49: SWMR | G49: Sahil | H49: Christian | J49: Level 1 | L49: 809192 | M49: 352864 | O49: 0.4360695607 | Q49: - | S49: =IFERROR(_xlfn.IFS(AA49="Ongoing", "", W49="hourly", 0,OR(L49="",M49=""),"",AA49="Complete", L49-M49,AA49<>"complete", ""),"") -> 456328 | T49: =IF(AND('Master Project List'!$S49="",'Master Project List'!$AA49<>"Complete"),"",_xlfn.IFS(AA49<>"Complete","-",L49-M49<0,"OVER",AND(S49="",AA49="Complete"),"N/A", AND(L49="",M49=""),"", W49="","",S49="","On Budget", S49=0, "On Budget", S49="","",S49<0, "OVER",AND(S49>0, AA49="complete"), "UNDER",AND(S49>0, AA49<>"complete"),"-")) -> UNDER | W49: =_xlfn.IFS(AND(L49="",M49=""),"",AND(V49<>"",L49<>"",L49<>0),"TMU",V49="","Milestone",V49<>"","Hourly") -> Milestone | X49: 2022-01-01 | Z49: 2022-04-21 | AA49: =_xlfn.IFS(X49="", "", X49<>"", IF(Z49="","Ongoing", "Complete")) -> Complete | AB49: 16
A50: 2022 | B50: 2022005 | C50: Democratic Republic of the Congo | D50: Pond 2A CCC Submission | E50: Stormwater | F50: Miscellaneous | G50: Jenn M | H50: Danika | L50: 639218 | M50: 541191 | O50: 0.8466454324 | Q50: - | S50: =IFERROR(_xlfn.IFS(AA50="Ongoing", "", W50="hourly", 0,OR(L50="",M50=""),"",AA50="Complete", L50-M50,AA50<>"complete", ""),"") -> 98027 | T50: =IF(AND('Master Project List'!$S50="",'Master Project List'!$AA50<>"Complete"),"",_xlfn.IFS(AA50<>"Complete","-",L50-M50<0,"OVER",AND(S50="",AA50="Complete"),"N/A", AND(L50="",M50=""),"", W50="","",S50="","On Budget", S50=0, "On Budget", S50="","",S50<0, "OVER",AND(S50>0, AA50="complete"), "UNDER",AND(S50>0, AA50<>"complete"),"-")) -> UNDER | V50: 238.5 | W50: =_xlfn.IFS(AND(L50="",M50=""),"",AND(V50<>"",L50<>"",L50<>0),"TMU",V50="","Milestone",V50<>"","Hourly") -> TMU | X50: 2022-01-01 | Z50: 2022-04-06 | AA50: =_xlfn.IFS(X50="", "", X50<>"", IF(Z50="","Ongoing", "Complete")) -> Complete | AB50: 14
A51: 2022 | B51: 2022006 | C51: Liberia | D51: Phase 34 SWMR | E51: Stormwater | F51: SWMR | G51: Sahil | H51: Christian | L51: 460789 | M51: 889725 | O51: 1.930872916 | Q51: - | S51: =IFERROR(_xlfn.IFS(AA51="Ongoing", "", W51="hourly", 0,OR(L51="",M51=""),"",AA51="Complete", L51-M51,AA51<>"complete", ""),"") -> -428936 | T51: =IF(AND('Master Project List'!$S51="",'Master Project List'!$AA51<>"Complete"),"",_xlfn.IFS(AA51<>"Complete","-",L51-M51<0,"OVER",AND(S51="",AA51="Complete"),"N/A", AND(L51="",M51=""),"", W51="","",S51="","On Budget", S51=0, "On Budget", S51="","",S51<0, "OVER",AND(S51>0, AA51="complete"), "UNDER",AND(S51>0, AA51<>"complete"),"-")) -> OVER | W51: =_xlfn.IFS(AND(L51="",M51=""),"",AND(V51<>"",L51<>"",L51<>0),"TMU",V51="","Milestone",V51<>"","Hourly") -> Milestone | X51: 2022-01-01 | Z51: 2022-05-01 | AA51: =_xlfn.IFS(X51="", "", X51<>"", IF(Z51="","Ongoing", "Complete")) -> Complete | AB51: 18
A52: 2022 | B52: 2022011 | C52: Laos | D52: Plains | F52: Concept Design | G52: Aaron | H52: Sam | J52: Level 2 | L52: 615139 | M52: 644152 | O52: 1.04716495 | Q52: - | S52: =IFERROR(_xlfn.IFS(AA52="Ongoing", "", W52="hourly", 0,OR(L52="",M52=""),"",AA52="Complete", L52-M52,AA52<>"complete", ""),"") ->  | T52: =IF(AND('Master Project List'!$S52="",'Master Project List'!$AA52<>"Complete"),"",_xlfn.IFS(AA52<>"Complete","-",L52-M52<0,"OVER",AND(S52="",AA52="Complete"),"N/A", AND(L52="",M52=""),"", W52="","",S52="","On Budget", S52=0, "On Budget", S52="","",S52<0, "OVER",AND(S52>0, AA52="complete"), "UNDER",AND(S52>0, AA52<>"complete"),"-")) ->  | W52: =_xlfn.IFS(AND(L52="",M52=""),"",AND(V52<>"",L52<>"",L52<>0),"TMU",V52="","Milestone",V52<>"","Hourly") -> Milestone | X52: 2022-02-01 | AA52: =_xlfn.IFS(X52="", "", X52<>"", IF(Z52="","Ongoing", "Complete")) -> Ongoing
A53: 2022 | B53: 2022012 | C53: Wakanda | D53: SMDP | E53: Stormwater | F53: SMDP | G53: Aaron | H53: Sarah | I53: Alison | J53: Level 2 | L53: 745446 | M53: 717633 | O53: 0.9626894503 | P53: 0.7 | Q53: 941266.8 | R53: -195820.8 | S53: =IFERROR(_xlfn.IFS(AA53="Ongoing", "", W53="hourly", 0,OR(L53="",M53=""),"",AA53="Complete", L53-M53,AA53<>"complete", ""),"") ->  | T53: =IF(AND('Master Project List'!$S53="",'Master Project List'!$AA53<>"Complete"),"",_xlfn.IFS(AA53<>"Complete","-",L53-M53<0,"OVER",AND(S53="",AA53="Complete"),"N/A", AND(L53="",M53=""),"", W53="","",S53="","On Budget", S53=0, "On Budget", S53="","",S53<0, "OVER",AND(S53>0, AA53="complete"), "UNDER",AND(S53>0, AA53<>"complete"),"-")) ->  | U53: Healthy | W53: =_xlfn.IFS(AND(L53="",M53=""),"",AND(V53<>"",L53<>"",L53<>0),"TMU",V53="","Milestone",V53<>"","Hourly") -> Milestone | X53: 2022-02-01 | Y53: 2023-03-01 | AA53: =_xlfn.IFS(X53="", "", X53<>"", IF(Z53="","Ongoing", "Complete")) -> Ongoing
A54: 2022 | B54: 2022013 | C54: Canada | D54: PH 2 SWMR | F54: SWMR | G54: Sahil | H54: Christian | L54: 56895 | M54: 651506 | O54: 11.45102382 | Q54: - | S54: =IFERROR(_xlfn.IFS(AA54="Ongoing", "", W54="hourly", 0,OR(L54="",M54=""),"",AA54="Complete", L54-M54,AA54<>"complete", ""),"") -> -594611 | T54: =IF(AND('Master Project List'!$S54="",'Master Project List'!$AA54<>"Complete"),"",_xlfn.IFS(AA54<>"Complete","-",L54-M54<0,"OVER",AND(S54="",AA54="Complete"),"N/A", AND(L54="",M54=""),"", W54="","",S54="","On Budget", S54=0, "On Budget", S54="","",S54<0, "OVER",AND(S54>0, AA54="complete"), "UNDER",AND(S54>0, AA54<>"complete"),"-")) -> OVER | W54: =_xlfn.IFS(AND(L54="",M54=""),"",AND(V54<>"",L54<>"",L54<>0),"TMU",V54="","Milestone",V54<>"","Hourly") -> Milestone | X54: 2022-02-01 | Z54: 2022-03-01 | AA54: =_xlfn.IFS(X54="", "", X54<>"", IF(Z54="","Ongoing", "Complete")) -> Complete | AB54: 4
A55: 2022 | B55: 2022014 | C55: Libya | D55: PH 17 | E55: Stormwater | F55: SWMR | G55: Sahil | H55: Christian | L55: 401728 | M55: 426488 | O55: 1.061633742 | Q55: - | S55: =IFERROR(_xlfn.IFS(AA55="Ongoing", "", W55="hourly", 0,OR(L55="",M55=""),"",AA55="Complete", L55-M55,AA55<>"complete", ""),"") -> -24760 | T55: =IF(AND('Master Project List'!$S55="",'Master Project List'!$AA55<>"Complete"),"",_xlfn.IFS(AA55<>"Complete","-",L55-M55<0,"OVER",AND(S55="",AA55="Complete"),"N/A", AND(L55="",M55=""),"", W55="","",S55="","On Budget", S55=0, "On Budget", S55="","",S55<0, "OVER",AND(S55>0, AA55="complete"), "UNDER",AND(S55>0, AA55<>"complete"),"-")) -> OVER | W55: =_xlfn.IFS(AND(L55="",M55=""),"",AND(V55<>"",L55<>"",L55<>0),"TMU",V55="","Milestone",V55<>"","Hourly") -> Milestone | X55: 2022-05-01 | Z55: 2022-09-01 | AA55: =_xlfn.IFS(X55="", "", X55<>"", IF(Z55="","Ongoing", "Complete")) -> Complete | AB55: 18
A56: 2021 | B56: 2022016 | C56: Tajikistan | D56: Development Reviews | F56: Miscellaneous | G56: Jenn M | H56: Sahil | L56: 317129 | M56: 811708 | O56: 2.559551476 | Q56: - | S56: =IFERROR(_xlfn.IFS(AA56="Ongoing", "", W56="hourly", 0,OR(L56="",M56=""),"",AA56="Complete", L56-M56,AA56<>"complete", ""),"") -> -494579 | T56: =IF(AND('Master Project List'!$S56="",'Master Project List'!$AA56<>"Complete"),"",_xlfn.IFS(AA56<>"Complete","-",L56-M56<0,"OVER",AND(S56="",AA56="Complete"),"N/A", AND(L56="",M56=""),"", W56="","",S56="","On Budget", S56=0, "On Budget", S56="","",S56<0, "OVER",AND(S56>0, AA56="complete"), "UNDER",AND(S56>0, AA56<>"complete"),"-")) -> OVER | V56: 8.25 | W56: =_xlfn.IFS(AND(L56="",M56=""),"",AND(V56<>"",L56<>"",L56<>0),"TMU",V56="","Milestone",V56<>"","Hourly") -> TMU | X56: 2021-02-01 | Z56: 2022-10-01 | AA56: =_xlfn.IFS(X56="", "", X56<>"", IF(Z56="","Ongoing", "Complete")) -> Complete | AB56: 35
A57: 2022 | B57: 2022018 | C57: Qatar | D57: Stage 2 | E57: Stormwater | F57: SMDP | G57: Anton | H57: Sahil | J57: Level 2 | L57: 18042 | M57: 281189 | O57: 15.58524554 | Q57: - | S57: =IFERROR(_xlfn.IFS(AA57="Ongoing", "", W57="hourly", 0,OR(L57="",M57=""),"",AA57="Complete", L57-M57,AA57<>"complete", ""),"") -> -263147 | T57: =IF(AND('Master Project List'!$S57="",'Master Project List'!$AA57<>"Complete"),"",_xlfn.IFS(AA57<>"Complete","-",L57-M57<0,"OVER",AND(S57="",AA57="Complete"),"N/A", AND(L57="",M57=""),"", W57="","",S57="","On Budget", S57=0, "On Budget", S57="","",S57<0, "OVER",AND(S57>0, AA57="complete"), "UNDER",AND(S57>0, AA57<>"complete"),"-")) -> OVER | W57: =_xlfn.IFS(AND(L57="",M57=""),"",AND(V57<>"",L57<>"",L57<>0),"TMU",V57="","Milestone",V57<>"","Hourly") -> Milestone | X57: 2022-03-01 | Z57: 2023-11-22 | AA57: =_xlfn.IFS(X57="", "", X57<>"", IF(Z57="","Ongoing", "Complete")) -> Complete | AB57: 39
A58: 2022 | B58: 2022019 | C58: Malaysia | D58: SWM Review | E58: Stormwater | F58: SWMR | G58: Sahil | H58: Danika | L58: 331422 | M58: 854057 | O58: 2.576947215 | Q58: - | S58: =IFERROR(_xlfn.IFS(AA58="Ongoing", "", W58="hourly", 0,OR(L58="",M58=""),"",AA58="Complete", L58-M58,AA58<>"complete", ""),"") -> -522635 | T58: =IF(AND('Master Project List'!$S58="",'Master Project List'!$AA58<>"Complete"),"",_xlfn.IFS(AA58<>"Complete","-",L58-M58<0,"OVER",AND(S58="",AA58="Complete"),"N/A", AND(L58="",M58=""),"", W58="","",S58="","On Budget", S58=0, "On Budget", S58="","",S58<0, "OVER",AND(S58>0, AA58="complete"), "UNDER",AND(S58>0, AA58<>"complete"),"-")) -> OVER | W58: =_xlfn.IFS(AND(L58="",M58=""),"",AND(V58<>"",L58<>"",L58<>0),"TMU",V58="","Milestone",V58<>"","Hourly") -> Milestone | X58: 2022-03-01 | Z58: 2022-05-01 | AA58: =_xlfn.IFS(X58="", "", X58<>"", IF(Z58="","Ongoing", "Complete")) -> Complete | AB58: 9
A59: 2022 | B59: 2022020 | C59: Chad | D59: MOP Feasibility | E59: Wastewater | F59: Feasibility | G59: Jennifer | H59: Jessica | I59: Hannah | J59: Level 2 | L59: 834893 | M59: 718559 | O59: 0.8606599888 | P59: 0.65 | Q59: 1010771.55 | R59: -175878.55 | S59: =IFERROR(_xlfn.IFS(AA59="Ongoing", "", W59="hourly", 0,OR(L59="",M59=""),"",AA59="Complete", L59-M59,AA59<>"complete", ""),"") ->  | T59: =IF(AND('Master Project List'!$S59="",'Master Project List'!$AA59<>"Complete"),"",_xlfn.IFS(AA59<>"Complete","-",L59-M59<0,"OVER",AND(S59="",AA59="Complete"),"N/A", AND(L59="",M59=""),"", W59="","",S59="","On Budget", S59=0, "On Budget", S59="","",S59<0, "OVER",AND(S59>0, AA59="complete"), "UNDER",AND(S59>0, AA59<>"complete"),"-")) ->  | U59: Healthy | W59: =_xlfn.IFS(AND(L59="",M59=""),"",AND(V59<>"",L59<>"",L59<>0),"TMU",V59="","Milestone",V59<>"","Hourly") -> Milestone | X59: 2022-03-01 | Y59: 2023-02-15 | AA59: =_xlfn.IFS(X59="", "", X59<>"", IF(Z59="","Ongoing", "Complete")) -> Ongoing
A60: 2022 | B60: 2022021 | C60: Czech Republic | D60: Phosphorous Loading | F60: Miscellaneous | G60: Anton | H60: Jen T | J60: Level 1 | L60: 51518 | M60: 30390 | O60: 0.5898909119 | Q60: - | S60: =IFERROR(_xlfn.IFS(AA60="Ongoing", "", W60="hourly", 0,OR(L60="",M60=""),"",AA60="Complete", L60-M60,AA60<>"complete", ""),"") -> 21128 | T60: =IF(AND('Master Project List'!$S60="",'Master Project List'!$AA60<>"Complete"),"",_xlfn.IFS(AA60<>"Complete","-",L60-M60<0,"OVER",AND(S60="",AA60="Complete"),"N/A", AND(L60="",M60=""),"", W60="","",S60="","On Budget", S60=0, "On Budget", S60="","",S60<0, "OVER",AND(S60>0, AA60="complete"), "UNDER",AND(S60>0, AA60<>"complete"),"-")) -> UNDER | W60: =_xlfn.IFS(AND(L60="",M60=""),"",AND(V60<>"",L60<>"",L60<>0),"TMU",V60="","Milestone",V60<>"","Hourly") -> Milestone | X60: 2022-04-01 | Z60: 2023-11-22 | AA60: =_xlfn.IFS(X60="", "", X60<>"", IF(Z60="","Ongoing", "Complete")) -> Complete | AB60: 34
A61: 2022 | B61: 2022022 | C61: Cyprus | D61: Outfall | E61: Stormwater | F61: Miscellaneous | G61: Jenn M | H61: Jessi | L61: 201939 | M61: 223412 | O61: 1.106334091 | Q61: - | S61: =IFERROR(_xlfn.IFS(AA61="Ongoing", "", W61="hourly", 0,OR(L61="",M61=""),"",AA61="Complete", L61-M61,AA61<>"complete", ""),"") -> -21473 | T61: =IF(AND('Master Project List'!$S61="",'Master Project List'!$AA61<>"Complete"),"",_xlfn.IFS(AA61<>"Complete","-",L61-M61<0,"OVER",AND(S61="",AA61="Complete"),"N/A", AND(L61="",M61=""),"", W61="","",S61="","On Budget", S61=0, "On Budget", S61="","",S61<0, "OVER",AND(S61>0, AA61="complete"), "UNDER",AND(S61>0, AA61<>"complete"),"-")) -> OVER | W61: =_xlfn.IFS(AND(L61="",M61=""),"",AND(V61<>"",L61<>"",L61<>0),"TMU",V61="","Milestone",V61<>"","Hourly") -> Milestone | X61: 2022-04-25 | Z61: 2022-08-01 | AA61: =_xlfn.IFS(X61="", "", X61<>"", IF(Z61="","Ongoing", "Complete")) -> Complete | AB61: 14
A62: 2022 | B62: 2022022 | C62: Cabo Verde | D62: Outfall | E62: Stormwater | F62: Miscellaneous | G62: Jenn M | H62: Jessi | L62: 208584 | M62: 289203 | O62: 1.386506156 | Q62: - | S62: =IFERROR(_xlfn.IFS(AA62="Ongoing", "", W62="hourly", 0,OR(L62="",M62=""),"",AA62="Complete", L62-M62,AA62<>"complete", ""),"") -> -80619 | T62: =IF(AND('Master Project List'!$S62="",'Master Project List'!$AA62<>"Complete"),"",_xlfn.IFS(AA62<>"Complete","-",L62-M62<0,"OVER",AND(S62="",AA62="Complete"),"N/A", AND(L62="",M62=""),"", W62="","",S62="","On Budget", S62=0, "On Budget", S62="","",S62<0, "OVER",AND(S62>0, AA62="complete"), "UNDER",AND(S62>0, AA62<>"complete"),"-")) -> OVER | V62: 125.25 | W62: =_xlfn.IFS(AND(L62="",M62=""),"",AND(V62<>"",L62<>"",L62<>0),"TMU",V62="","Milestone",V62<>"","Hourly") -> TMU | X62: 2022-04-01 | Z62: 2022-08-01 | AA62: =_xlfn.IFS(X62="", "", X62<>"", IF(Z62="","Ongoing", "Complete")) -> Complete | AB62: 18
A63: 2022 | B63: 2022023 | C63: Chile | D63: Site Servicing | F63: Site Servicing | G63: Jessi | H63: Jessi | L63: 725604 | M63: 737517 | O63: 1.016418046 | P63: 1 | Q63: 30302.5 | R63: 695301.5 | S63: =IFERROR(_xlfn.IFS(AA63="Ongoing", "", W63="hourly", 0,OR(L63="",M63=""),"",AA63="Complete", L63-M63,AA63<>"complete", ""),"") -> -11913 | T63: =IF(AND('Master Project List'!$S63="",'Master Project List'!$AA63<>"Complete"),"",_xlfn.IFS(AA63<>"Complete","-",L63-M63<0,"OVER",AND(S63="",AA63="Complete"),"N/A", AND(L63="",M63=""),"", W63="","",S63="","On Budget", S63=0, "On Budget", S63="","",S63<0, "OVER",AND(S63>0, AA63="complete"), "UNDER",AND(S63>0, AA63<>"complete"),"-")) -> OVER | U63: Not Awesome | W63: =_xlfn.IFS(AND(L63="",M63=""),"",AND(V63<>"",L63<>"",L63<>0),"TMU",V63="","Milestone",V63<>"","Hourly") -> Milestone | X63: 2022-04-01 | Z63: 2022-10-01 | AA63: =_xlfn.IFS(X63="", "", X63<>"", IF(Z63="","Ongoing", "Complete")) -> Complete | AB63: 27 | AD63: In the end, the client was very happy with the report, but we went through a few too many iterations internally.
A64: 2022 | B64: 2022024 | C64: Laos | D64: PH 36 SWMR | E64: Stormwater | F64: SWMR | G64: Sahil | H64: Christian | L64: 902416 | M64: 399226 | O64: 0.4423968547 | Q64: =IF(P64="","-",M64+((L64*(1-P64)))) -> - | S64: =IFERROR(_xlfn.IFS(AA64="Ongoing", "", W64="hourly", 0,OR(L64="",M64=""),"",AA64="Complete", L64-M64,AA64<>"complete", ""),"") -> 503190 | T64: =IF(AND('Master Project List'!$S64="",'Master Project List'!$AA64<>"Complete"),"",_xlfn.IFS(AA64<>"Complete","-",L64-M64<0,"OVER",AND(S64="",AA64="Complete"),"N/A", AND(L64="",M64=""),"", W64="","",S64="","On Budget", S64=0, "On Budget", S64="","",S64<0, "OVER",AND(S64>0, AA64="complete"), "UNDER",AND(S64>0, AA64<>"complete"),"-")) -> UNDER | W64: =_xlfn.IFS(AND(L64="",M64=""),"",AND(V64<>"",L64<>"",L64<>0),"TMU",V64="","Milestone",V64<>"","Hourly") -> Milestone | X64: 2022-05-01 | Z64: 2022-09-01 | AA64: =_xlfn.IFS(X64="", "", X64<>"", IF(Z64="","Ongoing", "Complete")) -> Complete | AB64: 18
A65: 2022 | B65: 2022025 | C65: Malaysia | D65: Stage 2 | F65: Concept Design | G65: Sam | H65: Sam | I65: Hannah | J65: Level 2 | L65: 41394 | M65: 676564 | O65: 16.34449437 | P65: 1 | Q65: 676564 | R65: -635170 | S65: =IFERROR(_xlfn.IFS(AA65="Ongoing", "", W65="hourly", 0,OR(L65="",M65=""),"",AA65="Complete", L65-M65,AA65<>"complete", ""),"") ->  | T65: =IF(AND('Master Project List'!$S65="",'Master Project List'!$AA65<>"Complete"),"",_xlfn.IFS(AA65<>"Complete","-",L65-M65<0,"OVER",AND(S65="",AA65="Complete"),"N/A", AND(L65="",M65=""),"", W65="","",S65="","On Budget", S65=0, "On Budget", S65="","",S65<0, "OVER",AND(S65>0, AA65="complete"), "UNDER",AND(S65>0, AA65<>"complete"),"-")) ->  | W65: =_xlfn.IFS(AND(L65="",M65=""),"",AND(V65<>"",L65<>"",L65<>0),"TMU",V65="","Milestone",V65<>"","Hourly") -> Milestone | X65: 2022-04-01 | Y65: 2022-12-01 | AA65: =_xlfn.IFS(X65="", "", X65<>"", IF(Z65="","Ongoing", "Complete")) -> Ongoing
A66: 2022 | B66: 2022028 | C66: Latvia | D66: Development | F66: Feasibility | G66: Jenn M | H66: Jessi | L66: 192625 | M66: 934534 | O66: 4.851571707 | P66: 1 | Q66: 934534 | R66: -741909 | S66: =IFERROR(_xlfn.IFS(AA66="Ongoing", "", W66="hourly", 0,OR(L66="",M66=""),"",AA66="Complete", L66-M66,AA66<>"complete", ""),"") -> -741909 | T66: =IF(AND('Master Project List'!$S66="",'Master Project List'!$AA66<>"Complete"),"",_xlfn.IFS(AA66<>"Complete","-",L66-M66<0,"OVER",AND(S66="",AA66="Complete"),"N/A", AND(L66="",M66=""),"", W66="","",S66="","On Budget", S66=0, "On Budget", S66="","",S66<0, "OVER",AND(S66>0, AA66="complete"), "UNDER",AND(S66>0, AA66<>"complete"),"-")) -> OVER | W66: =_xlfn.IFS(AND(L66="",M66=""),"",AND(V66<>"",L66<>"",L66<>0),"TMU",V66="","Milestone",V66<>"","Hourly") -> Milestone | X66: 2022-04-01 | Y66: 2022-07-15 | Z66: Closed | AA66: =_xlfn.IFS(X66="", "", X66<>"", IF(Z66="","Ongoing", "Complete")) -> Complete
A67: 2022 | B67: 2022029 | C67: Singapore | D67: Environmental Design Support | E67: Miscellaneous | F67: Miscellaneous | G67: Aaron | H67: Aaron | J67: Level 1 | L67: 93726 | M67: 537491 | O67: 5.734705418 | Q67: - | S67: =IFERROR(_xlfn.IFS(AA67="Ongoing", "", W67="hourly", 0,OR(L67="",M67=""),"",AA67="Complete", L67-M67,AA67<>"complete", ""),"") ->  | T67: =IF(AND('Master Project List'!$S67="",'Master Project List'!$AA67<>"Complete"),"",_xlfn.IFS(AA67<>"Complete","-",L67-M67<0,"OVER",AND(S67="",AA67="Complete"),"N/A", AND(L67="",M67=""),"", W67="","",S67="","On Budget", S67=0, "On Budget", S67="","",S67<0, "OVER",AND(S67>0, AA67="complete"), "UNDER",AND(S67>0, AA67<>"complete"),"-")) ->  | V67: 2.5 | W67: =_xlfn.IFS(AND(L67="",M67=""),"",AND(V67<>"",L67<>"",L67<>0),"TMU",V67="","Milestone",V67<>"","Hourly") -> TMU | X67: 2022-05-01 | AA67: =_xlfn.IFS(X67="", "", X67<>"", IF(Z67="","Ongoing", "Complete")) -> Ongoing
A68: 2022 | B68: 2022030 | C68: Algeria | D68: Solar DSSP | F68: DSSP | G68: Sahil | H68: Sarah | L68: 992891 | M68: 494753 | O68: 0.4982953819 | Q68: - | S68: =IFERROR(_xlfn.IFS(AA68="Ongoing", "", W68="hourly", 0,OR(L68="",M68=""),"",AA68="Complete", L68-M68,AA68<>"complete", ""),"") -> 498138 | T68: =IF(AND('Master Project List'!$S68="",'Master Project List'!$AA68<>"Complete"),"",_xlfn.IFS(AA68<>"Complete","-",L68-M68<0,"OVER",AND(S68="",AA68="Complete"),"N/A", AND(L68="",M68=""),"", W68="","",S68="","On Budget", S68=0, "On Budget", S68="","",S68<0, "OVER",AND(S68>0, AA68="complete"), "UNDER",AND(S68>0, AA68<>"complete"),"-")) -> UNDER | W68: =_xlfn.IFS(AND(L68="",M68=""),"",AND(V68<>"",L68<>"",L68<>0),"TMU",V68="","Milestone",V68<>"","Hourly") -> Milestone | X68: 2022-05-15 | Z68: 2022-07-01 | AA68: =_xlfn.IFS(X68="", "", X68<>"", IF(Z68="","Ongoing", "Complete")) -> Complete | AB68: 7
A69: 2022 | B69: 2022031 | C69: Algeria | D69: Solar DSSP | F69: DSSP | G69: Sahil | H69: Sarah | L69: 280620 | M69: 315575 | O69: 1.124563467 | Q69: - | S69: =IFERROR(_xlfn.IFS(AA69="Ongoing", "", W69="hourly", 0,OR(L69="",M69=""),"",AA69="Complete", L69-M69,AA69<>"complete", ""),"") -> -34955 | T69: =IF(AND('Master Project List'!$S69="",'Master Project List'!$AA69<>"Complete"),"",_xlfn.IFS(AA69<>"Complete","-",L69-M69<0,"OVER",AND(S69="",AA69="Complete"),"N/A", AND(L69="",M69=""),"", W69="","",S69="","On Budget", S69=0, "On Budget", S69="","",S69<0, "OVER",AND(S69>0, AA69="complete"), "UNDER",AND(S69>0, AA69<>"complete"),"-")) -> OVER | W69: =_xlfn.IFS(AND(L69="",M69=""),"",AND(V69<>"",L69<>"",L69<>0),"TMU",V69="","Milestone",V69<>"","Hourly") -> Milestone | X69: 2022-05-26 | Z69: 2022-09-01 | AA69: =_xlfn.IFS(X69="", "", X69<>"", IF(Z69="","Ongoing", "Complete")) -> Complete | AB69: 14
A70: =IFERROR(IF(X70="","",YEAR(X70)+IF(MONTH(X70)>=11,1,0)),"") -> 2022 | B70: 2022032 | C70: Laos | D70: PH 37 SWMR | E70: Stormwater | F70: SWMR | G70: Sahil | H70: Christian | L70: 519008 | M70: 470474 | O70: 0.9064869906 | Q70: - | S70: =IFERROR(_xlfn.IFS(AA70="Ongoing", "", W70="hourly", 0,OR(L70="",M70=""),"",AA70="Complete", L70-M70,AA70<>"complete", ""),"") -> 48534 | T70: =IF(AND('Master Project List'!$S70="",'Master Project List'!$AA70<>"Complete"),"",_xlfn.IFS(AA70<>"Complete","-",L70-M70<0,"OVER",AND(S70="",AA70="Complete"),"N/A", AND(L70="",M70=""),"", W70="","",S70="","On Budget", S70=0, "On Budget", S70="","",S70<0, "OVER",AND(S70>0, AA70="complete"), "UNDER",AND(S70>0, AA70<>"complete"),"-")) -> UNDER | W70: =_xlfn.IFS(AND(L70="",M70=""),"",AND(V70<>"",L70<>"",L70<>0),"TMU",V70="","Milestone",V70<>"","Hourly") -> Milestone | X70: 2022-06-08 | Z70: 2022-09-01 | AA70: =_xlfn.IFS(X70="", "", X70<>"", IF(Z70="","Ongoing", "Complete")) -> Complete | AB70: =IFERROR(IF(AND(X70="",Z70=""),"", WEEKNUM(_xlfn.DAYS(Z70,X70))),"") -> 13
A71: 2022 | B71: 2022033 | C71: China | D71: MOP Feasibility | E71: Wastewater | F71: Feasibility | G71: Jessi | H71: Jessi | J71: Level 2 | L71: 682982 | M71: 23351 | O71: 0.03418977367 | P71: 0.9 | Q71: 91649.2 | R71: 591332.8 | S71: =IFERROR(_xlfn.IFS(AA71="Ongoing", "", W71="hourly", 0,OR(L71="",M71=""),"",AA71="Complete", L71-M71,AA71<>"complete", ""),"") -> 659631 | T71: =IF(AND('Master Project List'!$S71="",'Master Project List'!$AA71<>"Complete"),"",_xlfn.IFS(AA71<>"Complete","-",L71-M71<0,"OVER",AND(S71="",AA71="Complete"),"N/A", AND(L71="",M71=""),"", W71="","",S71="","On Budget", S71=0, "On Budget", S71="","",S71<0, "OVER",AND(S71>0, AA71="complete"), "UNDER",AND(S71>0, AA71<>"complete"),"-")) -> UNDER | W71: =_xlfn.IFS(AND(L71="",M71=""),"",AND(V71<>"",L71<>"",L71<>0),"TMU",V71="","Milestone",V71<>"","Hourly") -> Milestone | X71: 2022-06-01 | Z71: 2022-11-01 | AA71: =_xlfn.IFS(X71="", "", X71<>"", IF(Z71="","Ongoing", "Complete")) -> Complete | AB71: 22
A72: 2022 | B72: 2022034 | C72: Central African Republic | D72: MOP Feasibility | E72: Wastewater | F72: Feasibility | G72: Anton | H72: Jessi | J72: Level 2 | L72: 569326 | M72: 964879 | O72: 1.694774172 | P72: 0.9 | Q72: 1021811.6 | R72: -452485.6 | S72: =IFERROR(_xlfn.IFS(AA72="Ongoing", "", W72="hourly", 0,OR(L72="",M72=""),"",AA72="Complete", L72-M72,AA72<>"complete", ""),"") -> -395553 | T72: =IF(AND('Master Project List'!$S72="",'Master Project List'!$AA72<>"Complete"),"",_xlfn.IFS(AA72<>"Complete","-",L72-M72<0,"OVER",AND(S72="",AA72="Complete"),"N/A", AND(L72="",M72=""),"", W72="","",S72="","On Budget", S72=0, "On Budget", S72="","",S72<0, "OVER",AND(S72>0, AA72="complete"), "UNDER",AND(S72>0, AA72<>"complete"),"-")) -> OVER | W72: =_xlfn.IFS(AND(L72="",M72=""),"",AND(V72<>"",L72<>"",L72<>0),"TMU",V72="","Milestone",V72<>"","Hourly") -> Milestone | X72: 2022-06-08 | Y72: 2022-11-15 | Z72: 2023-01-01 | AA72: =_xlfn.IFS(X72="", "", X72<>"", IF(Z72="","Ongoing", "Complete")) -> Complete | AB72: 30
A73: 2022 | B73: 2022036 | C73: Wales | D73: SWM Opportunities | E73: Stormwater | F73: Concept Design | G73: Sahil | H73: Sahil | L73: 355027 | M73: 772664 | O73: 2.176352784 | Q73: - | S73: =IFERROR(_xlfn.IFS(AA73="Ongoing", "", W73="hourly", 0,OR(L73="",M73=""),"",AA73="Complete", L73-M73,AA73<>"complete", ""),"") -> -417637 | T73: =IF(AND('Master Project List'!$S73="",'Master Project List'!$AA73<>"Complete"),"",_xlfn.IFS(AA73<>"Complete","-",L73-M73<0,"OVER",AND(S73="",AA73="Complete"),"N/A", AND(L73="",M73=""),"", W73="","",S73="","On Budget", S73=0, "On Budget", S73="","",S73<0, "OVER",AND(S73>0, AA73="complete"), "UNDER",AND(S73>0, AA73<>"complete"),"-")) -> OVER | V73: 21.75 | W73: =_xlfn.IFS(AND(L73="",M73=""),"",AND(V73<>"",L73<>"",L73<>0),"TMU",V73="","Milestone",V73<>"","Hourly") -> TMU | X73: 2022-06-20 | Y73: 2022-07-29 | Z73: 2022-07-01 | AA73: =_xlfn.IFS(X73="", "", X73<>"", IF(Z73="","Ongoing", "Complete")) -> Complete | AB73: 2
A74: 2022 | B74: 2022037 | C74: Honduras | D74: Terraces | F74: Miscellaneous | G74: Sahil | H74: Sahil | L74: 541157 | M74: 356133 | O74: 0.658095525 | Q74: - | S74: =IFERROR(_xlfn.IFS(AA74="Ongoing", "", W74="hourly", 0,OR(L74="",M74=""),"",AA74="Complete", L74-M74,AA74<>"complete", ""),"") -> 185024 | T74: =IF(AND('Master Project List'!$S74="",'Master Project List'!$AA74<>"Complete"),"",_xlfn.IFS(AA74<>"Complete","-",L74-M74<0,"OVER",AND(S74="",AA74="Complete"),"N/A", AND(L74="",M74=""),"", W74="","",S74="","On Budget", S74=0, "On Budget", S74="","",S74<0, "OVER",AND(S74>0, AA74="complete"), "UNDER",AND(S74>0, AA74<>"complete"),"-")) -> UNDER | W74: =_xlfn.IFS(AND(L74="",M74=""),"",AND(V74<>"",L74<>"",L74<>0),"TMU",V74="","Milestone",V74<>"","Hourly") -> Milestone | X74: 2022-07-01 | Z74: 2022-08-08 | AA74: =_xlfn.IFS(X74="", "", X74<>"", IF(Z74="","Ongoing", "Complete")) -> Complete | AB74: 6
A75: 2022 | B75: 2022039 | C75: Oldenburg | D75: SWMR | E75: Stormwater | F75: SWMR | G75: Sahil | H75: Christian | J75: Level 1 | L75: 317180 | M75: 179990 | O75: 0.5674695756 | Q75: - | S75: =IFERROR(_xlfn.IFS(AA75="Ongoing", "", W75="hourly", 0,OR(L75="",M75=""),"",AA75="Complete", L75-M75,AA75<>"complete", ""),"") -> 137190 | T75: =IF(AND('Master Project List'!$S75="",'Master Project List'!$AA75<>"Complete"),"",_xlfn.IFS(AA75<>"Complete","-",L75-M75<0,"OVER",AND(S75="",AA75="Complete"),"N/A", AND(L75="",M75=""),"", W75="","",S75="","On Budget", S75=0, "On Budget", S75="","",S75<0, "OVER",AND(S75>0, AA75="complete"), "UNDER",AND(S75>0, AA75<>"complete"),"-")) -> UNDER | W75: =_xlfn.IFS(AND(L75="",M75=""),"",AND(V75<>"",L75<>"",L75<>0),"TMU",V75="","Milestone",V75<>"","Hourly") -> Milestone | X75: 2022-07-11 | Z75: 2022-07-01 | AA75: =_xlfn.IFS(X75="", "", X75<>"", IF(Z75="","Ongoing", "Complete")) -> Complete
A76: 2022 | B76: 2022041 | C76: Libya | D76: PH 20 SWMR | E76: Stormwater | F76: Stakeholder Engagement | G76: Sam | H76: Christian | I76: Josh | J76: Level 1 | L76: 141321 | M76: 28397 | O76: =IFERROR(M76/L76,"") -> 0.2009397046 | P76: 0.1 | Q76: 155585.9 | R76: -14264.9 | S76: =IFERROR(_xlfn.IFS(AA76="Ongoing", "", W76="hourly", 0,OR(L76="",M76=""),"",AA76="Complete", L76-M76,AA76<>"complete", ""),"") ->  | T76: =IF(AND('Master Project List'!$S76="",'Master Project List'!$AA76<>"Complete"),"",_xlfn.IFS(AA76<>"Complete","-",L76-M76<0,"OVER",AND(S76="",AA76="Complete"),"N/A", AND(L76="",M76=""),"", W76="","",S76="","On Budget", S76=0, "On Budget", S76="","",S76<0, "OVER",AND(S76>0, AA76="complete"), "UNDER",AND(S76>0, AA76<>"complete"),"-")) ->  | W76: =_xlfn.IFS(AND(L76="",M76=""),"",AND(V76<>"",L76<>"",L76<>0),"TMU",V76="","Milestone",V76<>"","Hourly") -> Milestone | X76: 2022-07-25 | AA76: =_xlfn.IFS(X76="", "", X76<>"", IF(Z76="","Ongoing", "Complete")) -> Ongoing
A77: 2022 | B77: 2022042 | C77: Angola | D77: Estates 2 | F77: Miscellaneous | G77: Sahil | H77: Christian | L77: 200385 | M77: 403621 | O77: 2.014227612 | Q77: - | S77: =IFERROR(_xlfn.IFS(AA77="Ongoing", "", W77="hourly", 0,OR(L77="",M77=""),"",AA77="Complete", L77-M77,AA77<>"complete", ""),"") -> -203236 | T77: =IF(AND('Master Project List'!$S77="",'Master Project List'!$AA77<>"Complete"),"",_xlfn.IFS(AA77<>"Complete","-",L77-M77<0,"OVER",AND(S77="",AA77="Complete"),"N/A", AND(L77="",M77=""),"", W77="","",S77="","On Budget", S77=0, "On Budget", S77="","",S77<0, "OVER",AND(S77>0, AA77="complete"), "UNDER",AND(S77>0, AA77<>"complete"),"-")) -> OVER | W77: =_xlfn.IFS(AND(L77="",M77=""),"",AND(V77<>"",L77<>"",L77<>0),"TMU",V77="","Milestone",V77<>"","Hourly") -> Milestone | X77: 2022-07-26 | Z77: 2022-07-01 | AA77: =_xlfn.IFS(X77="", "", X77<>"", IF(Z77="","Ongoing", "Complete")) -> Complete
A78: 2022 | B78: 2022043 | C78: Liechtenstein | D78: PH 7 | E78: Stormwater | F78: SWMR | G78: Sahil | H78: Christian | J78: Level 1 | L78: 62922 | M78: 79229 | O78: 1.259162137 | P78: 1 | Q78: 79229 | R78: -16307 | S78: =IFERROR(_xlfn.IFS(AA78="Ongoing", "", W78="hourly", 0,OR(L78="",M78=""),"",AA78="Complete", L78-M78,AA78<>"complete", ""),"") -> -16307 | T78: =IF(AND('Master Project List'!$S78="",'Master Project List'!$AA78<>"Complete"),"",_xlfn.IFS(AA78<>"Complete","-",L78-M78<0,"OVER",AND(S78="",AA78="Complete"),"N/A", AND(L78="",M78=""),"", W78="","",S78="","On Budget", S78=0, "On Budget", S78="","",S78<0, "OVER",AND(S78>0, AA78="complete"), "UNDER",AND(S78>0, AA78<>"complete"),"-")) -> OVER | W78: =_xlfn.IFS(AND(L78="",M78=""),"",AND(V78<>"",L78<>"",L78<>0),"TMU",V78="","Milestone",V78<>"","Hourly") -> Milestone | X78: 2022-08-03 | Y78: 2022-09-15 | Z78: 2023-01-01 | AA78: =_xlfn.IFS(X78="", "", X78<>"", IF(Z78="","Ongoing", "Complete")) -> Complete | AB78: 22
A79: 2022 | B79: 2022044 | C79: El Salvador | D79: PH 1 SWMR | E79: Stormwater | F79: SWMR | G79: Sam | H79: Christian | I79: Alison | J79: Level 1 | L79: 671005 | M79: 47585 | O79: 0.07091601404 | P79: 0.85 | Q79: 148235.75 | R79: 522769.25 | S79: =IFERROR(_xlfn.IFS(AA79="Ongoing", "", W79="hourly", 0,OR(L79="",M79=""),"",AA79="Complete", L79-M79,AA79<>"complete", ""),"") ->  | T79: =IF(AND('Master Project List'!$S79="",'Master Project List'!$AA79<>"Complete"),"",_xlfn.IFS(AA79<>"Complete","-",L79-M79<0,"OVER",AND(S79="",AA79="Complete"),"N/A", AND(L79="",M79=""),"", W79="","",S79="","On Budget", S79=0, "On Budget", S79="","",S79<0, "OVER",AND(S79>0, AA79="complete"), "UNDER",AND(S79>0, AA79<>"complete"),"-")) ->  | W79: =_xlfn.IFS(AND(L79="",M79=""),"",AND(V79<>"",L79<>"",L79<>0),"TMU",V79="","Milestone",V79<>"","Hourly") -> Milestone | X79: 2022-08-08 | Y79: 2022-09-08 | AA79: =_xlfn.IFS(X79="", "", X79<>"", IF(Z79="","Ongoing", "Complete")) -> Ongoing
A80: 2022 | B80: 2022045 | C80: Egypt | D80: General | E80: Stormwater | F80: Miscellaneous | G80: Sam | H80: Christian | I80: Alison | J80: Level 1 | L80: 96050 | M80: 854072 | O80: 8.891952108 | Q80: - | S80: =IFERROR(_xlfn.IFS(AA80="Ongoing", "", W80="hourly", 0,OR(L80="",M80=""),"",AA80="Complete", L80-M80,AA80<>"complete", ""),"") ->  | T80: =IF(AND('Master Project List'!$S80="",'Master Project List'!$AA80<>"Complete"),"",_xlfn.IFS(AA80<>"Complete","-",L80-M80<0,"OVER",AND(S80="",AA80="Complete"),"N/A", AND(L80="",M80=""),"", W80="","",S80="","On Budget", S80=0, "On Budget", S80="","",S80<0, "OVER",AND(S80>0, AA80="complete"), "UNDER",AND(S80>0, AA80<>"complete"),"-")) ->  | V80: 3 | W80: =_xlfn.IFS(AND(L80="",M80=""),"",AND(V80<>"",L80<>"",L80<>0),"TMU",V80="","Milestone",V80<>"","Hourly") -> TMU | X80: 2022-08-08 | Y80: 2022-12-31 | AA80: =_xlfn.IFS(X80="", "", X80<>"", IF(Z80="","Ongoing", "Complete")) -> Ongoing
A81: 2022 | B81: 2022046 | C81: Chad | D81: WTE | E81: Miscellaneous | F81: Miscellaneous | G81: Jennifer | H81: Jessica | I81: Hannah | J81: Level 2 | L81: 615412 | M81: 928110 | O81: 1.508111639 | P81: 0.5 | Q81: 1235816 | R81: -620404 | S81: =IFERROR(_xlfn.IFS(AA81="Ongoing", "", W81="hourly", 0,OR(L81="",M81=""),"",AA81="Complete", L81-M81,AA81<>"complete", ""),"") ->  | T81: =IF(AND('Master Project List'!$S81="",'Master Project List'!$AA81<>"Complete"),"",_xlfn.IFS(AA81<>"Complete","-",L81-M81<0,"OVER",AND(S81="",AA81="Complete"),"N/A", AND(L81="",M81=""),"", W81="","",S81="","On Budget", S81=0, "On Budget", S81="","",S81<0, "OVER",AND(S81>0, AA81="complete"), "UNDER",AND(S81>0, AA81<>"complete"),"-")) ->  | U81: Healthy | W81: =_xlfn.IFS(AND(L81="",M81=""),"",AND(V81<>"",L81<>"",L81<>0),"TMU",V81="","Milestone",V81<>"","Hourly") -> Milestone | X81: 2022-08-08 | AA81: =_xlfn.IFS(X81="", "", X81<>"", IF(Z81="","Ongoing", "Complete")) -> Ongoing
A82: 2022 | B82: 2022047 | C82: Albania | D82: Water Treatment Residuals | E82: Miscellaneous | F82: MAGNA | G82: Aaron | H82: Jessica | I82: Hannah | J82: Level 2 | L82: 656582 | M82: 185966 | O82: 0.2832334727 | P82: 0.25 | Q82: 678402.5 | R82: -21820.5 | S82: =IFERROR(_xlfn.IFS(AA82="Ongoing", "", W82="hourly", 0,OR(L82="",M82=""),"",AA82="Complete", L82-M82,AA82<>"complete", ""),"") ->  | T82: =IF(AND('Master Project List'!$S82="",'Master Project List'!$AA82<>"Complete"),"",_xlfn.IFS(AA82<>"Complete","-",L82-M82<0,"OVER",AND(S82="",AA82="Complete"),"N/A", AND(L82="",M82=""),"", W82="","",S82="","On Budget", S82=0, "On Budget", S82="","",S82<0, "OVER",AND(S82>0, AA82="complete"), "UNDER",AND(S82>0, AA82<>"complete"),"-")) ->  | U82: Healthy | W82: =_xlfn.IFS(AND(L82="",M82=""),"",AND(V82<>"",L82<>"",L82<>0),"TMU",V82="","Milestone",V82<>"","Hourly") -> Milestone | X82: 2022-08-22 | Y82: 2024-06-01 | AA82: =_xlfn.IFS(X82="", "", X82<>"", IF(Z82="","Ongoing", "Complete")) -> Ongoing
A83: 2022 | B83: 2022048 | C83: Maldives | D83: hourly TMU | E83: Stormwater | F83: Stormwater | G83: Jenn M | H83: Jessi | J83: Level 1 | L83: 680328 | M83: 217671 | O83: 0.3199500829 | P83: 1 | Q83: - | R83: - | S83: =IFERROR(_xlfn.IFS(AA83="Ongoing", "", W83="hourly", 0,OR(L83="",M83=""),"",AA83="Complete", L83-M83,AA83<>"complete", ""),"") -> 462657 | T83: =IF(AND('Master Project List'!$S83="",'Master Project List'!$AA83<>"Complete"),"",_xlfn.IFS(AA83<>"Complete","-",L83-M83<0,"OVER",AND(S83="",AA83="Complete"),"N/A", AND(L83="",M83=""),"", W83="","",S83="","On Budget", S83=0, "On Budget", S83="","",S83<0, "OVER",AND(S83>0, AA83="complete"), "UNDER",AND(S83>0, AA83<>"complete"),"-")) -> UNDER | V83: 1.5 | W83: =_xlfn.IFS(AND(L83="",M83=""),"",AND(V83<>"",L83<>"",L83<>0),"TMU",V83="","Milestone",V83<>"","Hourly") -> TMU | X83: 2022-08-22 | Y83: 2022-09-30 | Z83: 2022-10-01 | AA83: =_xlfn.IFS(X83="", "", X83<>"", IF(Z83="","Ongoing", "Complete")) -> Complete | AB83: 6
A84: 2022 | B84: 2022049 | C84: Congo | D84: Net Zero Water | E84: Stormwater | F84: Grant Application | G84: Jenn M | H84: Jen T | J84: Level 1 | L84: 546610 | M84: 544239 | O84: 0.9956623552 | Q84: =IF(P84="","-",M84+((L84*(1-P84)))) -> - | R84: =IFERROR(L84-Q84,"") ->  | S84: =IFERROR(_xlfn.IFS(AA84="Ongoing", "", W84="hourly", 0,OR(L84="",M84=""),"",AA84="Complete", L84-M84,AA84<>"complete", ""),"") -> 2371 | T84: =IF(AND('Master Project List'!$S84="",'Master Project List'!$AA84<>"Complete"),"",_xlfn.IFS(AA84<>"Complete","-",L84-M84<0,"OVER",AND(S84="",AA84="Complete"),"N/A", AND(L84="",M84=""),"", W84="","",S84="","On Budget", S84=0, "On Budget", S84="","",S84<0, "OVER",AND(S84>0, AA84="complete"), "UNDER",AND(S84>0, AA84<>"complete"),"-")) -> UNDER | W84: =_xlfn.IFS(AND(L84="",M84=""),"",AND(V84<>"",L84<>"",L84<>0),"TMU",V84="","Milestone",V84<>"","Hourly") -> Milestone | X84: 2022-09-15 | Y84: 2022-10-15 | Z84: 2022-12-01 | AA84: =_xlfn.IFS(X84="", "", X84<>"", IF(Z84="","Ongoing", "Complete")) -> Complete | AB84: 11
A85: 2022 | B85: 2022050 | C85: Iceland | D85: WTR | E85: Wastewater | F85: MAGNA | G85: Aaron | H85: Miranda | I85: N/A | J85: Level 1 | L85: 832646 | M85: 976489 | O85: 1.172754088 | Q85: - | S85: =IFERROR(_xlfn.IFS(AA85="Ongoing", "", W85="hourly", 0,OR(L85="",M85=""),"",AA85="Complete", L85-M85,AA85<>"complete", ""),"") ->  | T85: =IF(AND('Master Project List'!$S85="",'Master Project List'!$AA85<>"Complete"),"",_xlfn.IFS(AA85<>"Complete","-",L85-M85<0,"OVER",AND(S85="",AA85="Complete"),"N/A", AND(L85="",M85=""),"", W85="","",S85="","On Budget", S85=0, "On Budget", S85="","",S85<0, "OVER",AND(S85>0, AA85="complete"), "UNDER",AND(S85>0, AA85<>"complete"),"-")) ->  | W85: =_xlfn.IFS(AND(L85="",M85=""),"",AND(V85<>"",L85<>"",L85<>0),"TMU",V85="","Milestone",V85<>"","Hourly") -> Milestone | X85: 2022-09-01 | Y85: 2024-09-01 | AA85: =_xlfn.IFS(X85="", "", X85<>"", IF(Z85="","Ongoing", "Complete")) -> Ongoing
A86: 2022 | B86: 2022053 | C86: Laos | D86: PH 60 SWMR | E86: Stormwater | F86: SWMR | G86: Sam | H86: Christian | I86: Hannah | J86: Level 1 | L86: 757183 | M86: 601937 | O86: 0.7949689837 | P86: 1 | Q86: 601937 | R86: 155246 | T86: =IF(AND('Master Project List'!$S86="",'Master Project List'!$AA86<>"Complete"),"",_xlfn.IFS(AA86<>"Complete","-",L86-M86<0,"OVER",AND(S86="",AA86="Complete"),"N/A", AND(L86="",M86=""),"", W86="","",S86="","On Budget", S86=0, "On Budget", S86="","",S86<0, "OVER",AND(S86>0, AA86="complete"), "UNDER",AND(S86>0, AA86<>"complete"),"-")) ->  | W86: =_xlfn.IFS(AND(L86="",M86=""),"",AND(V86<>"",L86<>"",L86<>0),"TMU",V86="","Milestone",V86<>"","Hourly") -> Milestone | X86: 2022-10-12 | Y86: 2022-11-21 | AA86: =_xlfn.IFS(X86="", "", X86<>"", IF(Z86="","Ongoing", "Complete")) -> Ongoing
A87: 2022 | B87: 2022055 | C87: Ecuador | D87: PH 1 SWMR | E87: Stormwater | F87: SWMR | G87: Sam | H87: Christian | I87: Hannah | J87: Level 1 | L87: 754883 | M87: 879019 | O87: 1.164444026 | P87: 0.8 | Q87: 1029995.6 | R87: -275112.6 | T87: =IF(AND('Master Project List'!$S87="",'Master Project List'!$AA87<>"Complete"),"",_xlfn.IFS(AA87<>"Complete","-",L87-M87<0,"OVER",AND(S87="",AA87="Complete"),"N/A", AND(L87="",M87=""),"", W87="","",S87="","On Budget", S87=0, "On Budget", S87="","",S87<0, "OVER",AND(S87>0, AA87="complete"), "UNDER",AND(S87>0, AA87<>"complete"),"-")) ->  | W87: =_xlfn.IFS(AND(L87="",M87=""),"",AND(V87<>"",L87<>"",L87<>0),"TMU",V87="","Milestone",V87<>"","Hourly") -> Milestone | X87: 2022-10-01 | Y87: 2022-12-31 | AA87: =_xlfn.IFS(X87="", "", X87<>"", IF(Z87="","Ongoing", "Complete")) -> Ongoing
A88: 2023 | B88: 2022057 | C88: El Salvador | D88: Phase 3 SWMR | E88: Stormwater | F88: SWMR | G88: Sam | H88: Christian | I88: Alison | J88: Level 1 | L88: 777555 | M88: 15820 | O88: 0.02034582763 | P88: 1 | Q88: 15820 | R88: 761735 | X88: 2022-11-17 | AA88: =_xlfn.IFS(X88="", "", X88<>"", IF(Z88="","Ongoing", "Complete")) -> Ongoing
A89: 2023 | B89: 2022059 | C89: Oman | D89: fields | F89: Miscellaneous | G89: Cody | H89: Hanan | J89: Level 1 | L89: 471950 | M89: 948373 | O89: 2.009477699 | Q89: - | W89: Milestone | X89: 2022-11-28 | Z89: 2022-12-01 | AA89: =_xlfn.IFS(X89="", "", X89<>"", IF(Z89="","Ongoing", "Complete")) -> Complete | AB89: 1
A90: 2023 | B90: 2022061 | C90: LewChew | D90: PH 31 SWMR | E90: Stormwater | F90: SWMR | G90: Sam | H90: Christian | I90: Hannah | J90: Level 1 | L90: 658183 | M90: 587900 | O90: 0.8932166282 | Q90: - | T90: =IF(AND('Master Project List'!$S90="",'Master Project List'!$AA90<>"Complete"),"",_xlfn.IFS(AA90<>"Complete","-",L90-M90<0,"OVER",AND(S90="",AA90="Complete"),"N/A", AND(L90="",M90=""),"", W90="","",S90="","On Budget", S90=0, "On Budget", S90="","",S90<0, "OVER",AND(S90>0, AA90="complete"), "UNDER",AND(S90>0, AA90<>"complete"),"-")) ->  | W90: =_xlfn.IFS(AND(L90="",M90=""),"",AND(V90<>"",L90<>"",L90<>0),"TMU",V90="","Milestone",V90<>"","Hourly") -> Milestone | X90: 2022-11-30 | AA90: =_xlfn.IFS(X90="", "", X90<>"", IF(Z90="","Ongoing", "Complete")) -> Ongoing
A91: 2023 | B91: 2022062 | C91: Lithuania | D91: PH 38 SWMR | E91: Stormwater | F91: SWMR | G91: Sam | H91: Christian | I91: Chris | J91: Level 1 | L91: 206038 | M91: 322990 | O91: 1.567623448 | Q91: - | T91: =IF(AND('Master Project List'!$S91="",'Master Project List'!$AA91<>"Complete"),"",_xlfn.IFS(AA91<>"Complete","-",L91-M91<0,"OVER",AND(S91="",AA91="Complete"),"N/A", AND(L91="",M91=""),"", W91="","",S91="","On Budget", S91=0, "On Budget", S91="","",S91<0, "OVER",AND(S91>0, AA91="complete"), "UNDER",AND(S91>0, AA91<>"complete"),"-")) ->  | W91: =_xlfn.IFS(AND(L91="",M91=""),"",AND(V91<>"",L91<>"",L91<>0),"TMU",V91="","Milestone",V91<>"","Hourly") -> Milestone | X91: 2022-11-30 | AA91: =_xlfn.IFS(X91="", "", X91<>"", IF(Z91="","Ongoing", "Complete")) -> Ongoing
A92: 2023 | B92: 2023001 | C92: Djibouti | D92: Pond 2B M & M | E92: Stormwater | F92: Construction | G92: Sam | H92: Harry | I92: Josh | J92: Level 2 | L92: 763405 | M92: 12229 | O92: 0.01601902005 | T92: =IF(AND('Master Project List'!$S92="",'Master Project List'!$AA92<>"Complete"),"",_xlfn.IFS(AA92<>"Complete","-",L92-M92<0,"OVER",AND(S92="",AA92="Complete"),"N/A", AND(L92="",M92=""),"", W92="","",S92="","On Budget", S92=0, "On Budget", S92="","",S92<0, "OVER",AND(S92>0, AA92="complete"), "UNDER",AND(S92>0, AA92<>"complete"),"-")) ->  | W92: =_xlfn.IFS(AND(L92="",M92=""),"",AND(V92<>"",L92<>"",L92<>0),"TMU",V92="","Milestone",V92<>"","Hourly") -> Milestone | X92: 2023-01-01 | Y92: 2023-12-31 | AA92: =_xlfn.IFS(X92="", "", X92<>"", IF(Z92="","Ongoing", "Complete")) -> Ongoing
A93: 2023 | B93: 2023002 | C93: Denmark | D93: Pond 2B Land Use | L93: 501540 | M93: 377972 | O93: 0.7536228416 | T93: =IF(AND('Master Project List'!$S93="",'Master Project List'!$AA93<>"Complete"),"",_xlfn.IFS(AA93<>"Complete","-",L93-M93<0,"OVER",AND(S93="",AA93="Complete"),"N/A", AND(L93="",M93=""),"", W93="","",S93="","On Budget", S93=0, "On Budget", S93="","",S93<0, "OVER",AND(S93>0, AA93="complete"), "UNDER",AND(S93>0, AA93<>"complete"),"-")) -> N/A | W93: =_xlfn.IFS(AND(L93="",M93=""),"",AND(V93<>"",L93<>"",L93<>0),"TMU",V93="","Milestone",V93<>"","Hourly") -> Milestone | X93: 2023-01-31 | Z93: 2023-01-31 | AA93: =_xlfn.IFS(X93="", "", X93<>"", IF(Z93="","Ongoing", "Complete")) -> Complete | AB93: 0
A94: 2023 | B94: 2023003 | C94: Chad | D94: Parking Lot | E94: Stormwater | F94: Stormwater | G94: Jennifer | H94: Sarah | I94: Hannah | J94: Level 1 | L94: 660119 | M94: 531145 | O94: 0.8046200761 | P94: 0.5 | T94: =IF(AND('Master Project List'!$S94="",'Master Project List'!$AA94<>"Complete"),"",_xlfn.IFS(AA94<>"Complete","-",L94-M94<0,"OVER",AND(S94="",AA94="Complete"),"N/A", AND(L94="",M94=""),"", W94="","",S94="","On Budget", S94=0, "On Budget", S94="","",S94<0, "OVER",AND(S94>0, AA94="complete"), "UNDER",AND(S94>0, AA94<>"complete"),"-")) ->  | U94: Healthy | W94: =_xlfn.IFS(AND(L94="",M94=""),"",AND(V94<>"",L94<>"",L94<>0),"TMU",V94="","Milestone",V94<>"","Hourly") -> Milestone | X94: 2023-02-14 | Y94: ='Master Project List'!$X94+30 -> 2023-03-16 | AA94: =_xlfn.IFS(X94="", "", X94<>"", IF(Z94="","Ongoing", "Complete")) -> Ongoing
A95: 2023 | B95: 2023004 | C95: Democratic Republic of the Congo | D95: Retrofit | E95: Stormwater | F95: DD | G95: Jennifer | H95: Harry | I95: Hannah | J95: Level 2 | L95: 708507 | M95: 519263 | O95: 0.7328974873 | T95: =IF(AND('Master Project List'!$S95="",'Master Project List'!$AA95<>"Complete"),"",_xlfn.IFS(AA95<>"Complete","-",L95-M95<0,"OVER",AND(S95="",AA95="Complete"),"N/A", AND(L95="",M95=""),"", W95="","",S95="","On Budget", S95=0, "On Budget", S95="","",S95<0, "OVER",AND(S95>0, AA95="complete"), "UNDER",AND(S95>0, AA95<>"complete"),"-")) ->  | W95: =_xlfn.IFS(AND(L95="",M95=""),"",AND(V95<>"",L95<>"",L95<>0),"TMU",V95="","Milestone",V95<>"","Hourly") -> Milestone | X95: 2022-12-01 | AA95: =_xlfn.IFS(X95="", "", X95<>"", IF(Z95="","Ongoing", "Complete")) -> Ongoing
A96: 2023 | B96: 2023005 | C96: Denmark | D96: Pond 2B EPEA Compliance | E96: Stormwater | F96: EPEA | G96: Jennifer | H96: Harry | I96: Alison | J96: Level 1 | L96: 10183 | M96: 452868 | O96: 44.4729451 | P96: 1 | T96: =IF(AND('Master Project List'!$S96="",'Master Project List'!$AA96<>"Complete"),"",_xlfn.IFS(AA96<>"Complete","-",L96-M96<0,"OVER",AND(S96="",AA96="Complete"),"N/A", AND(L96="",M96=""),"", W96="","",S96="","On Budget", S96=0, "On Budget", S96="","",S96<0, "OVER",AND(S96>0, AA96="complete"), "UNDER",AND(S96>0, AA96<>"complete"),"-")) ->  | W96: =_xlfn.IFS(AND(L96="",M96=""),"",AND(V96<>"",L96<>"",L96<>0),"TMU",V96="","Milestone",V96<>"","Hourly") -> Milestone | X96: 2022-12-01 | AA96: =_xlfn.IFS(X96="", "", X96<>"", IF(Z96="","Ongoing", "Complete")) -> Ongoing
A97: 2023 | B97: 2023006 | C97: Qatar | D97: EcoPark | E97: Stormwater | F97: DD | G97: Jennifer | H97: Harry | I97: Hannah | J97: Level 2 | L97: 945509 | M97: 836646 | O97: 0.8848630738 | T97: =IF(AND('Master Project List'!$S97="",'Master Project List'!$AA97<>"Complete"),"",_xlfn.IFS(AA97<>"Complete","-",L97-M97<0,"OVER",AND(S97="",AA97="Complete"),"N/A", AND(L97="",M97=""),"", W97="","",S97="","On Budget", S97=0, "On Budget", S97="","",S97<0, "OVER",AND(S97>0, AA97="complete"), "UNDER",AND(S97>0, AA97<>"complete"),"-")) ->  | W97: =_xlfn.IFS(AND(L97="",M97=""),"",AND(V97<>"",L97<>"",L97<>0),"TMU",V97="","Milestone",V97<>"","Hourly") -> Milestone | X97: 2023-01-01 | AA97: =_xlfn.IFS(X97="", "", X97<>"", IF(Z97="","Ongoing", "Complete")) -> Ongoing
A98: =IFERROR(IF(X98="","",YEAR(X98)+IF(MONTH(X98)>=11,1,0)),"") -> 2023 | B98: 2023007 | C98: Estonia | D98: 144th Ave. SWMR | E98: Stormwater | F98: SWMR | G98: Sam | H98: Christian | I98: Alison | J98: Level 1 | L98: 577105 | M98: 822510 | O98: 1.425234576 | T98: =IF(AND('Master Project List'!$S98="",'Master Project List'!$AA98<>"Complete"),"",_xlfn.IFS(AA98<>"Complete","-",L98-M98<0,"OVER",AND(S98="",AA98="Complete"),"N/A", AND(L98="",M98=""),"", W98="","",S98="","On Budget", S98=0, "On Budget", S98="","",S98<0, "OVER",AND(S98>0, AA98="complete"), "UNDER",AND(S98>0, AA98<>"complete"),"-")) ->  | W98: =_xlfn.IFS(AND(L98="",M98=""),"",AND(V98<>"",L98<>"",L98<>0),"TMU",V98="","Milestone",V98<>"","Hourly") -> Milestone | X98: 2023-02-13 | Y98: 2023-03-13 | AA98: =_xlfn.IFS(X98="", "", X98<>"", IF(Z98="","Ongoing", "Complete")) -> Ongoing
A99: 2022 | B99: 2023014 | C99: Cambodia | D99: BWSM O&M | E99: Wastewater | F99: Construction | G99: Jennifer | H99: Elizabeth | I99: Josh | J99: Level 3 | L99: 152883 | M99: 565325 | O99: 3.697762341 | P99: 0.02 | Q99: =IF(P99="","-",M99+((L99*(1-P99)))) -> 715150.34 | R99: =IFERROR(L99-Q99,"") -> -562267.34 | S99: =IFERROR(_xlfn.IFS(AA99="Ongoing", "", W99="hourly", 0,OR(L99="",M99=""),"",AA99="Complete", L99-M99,AA99<>"complete", ""),"") ->  | T99: =_xlfn.IFS(AA99<>"Complete","-",L99-M99<0,"OVER",AND(S99="",AA99="Complete"),"N/A", AND(L99="",M99=""),"", W99="","",S99="","On Budget", S99=0, "On Budget", S99="","",S99<0, "OVER",AND(S99>0, AA99="complete"), "UNDER",AND(S99>0, AA99<>"complete"),"-") -> - | W99: =_xlfn.IFS(AND(L99="",M99=""),"",AND(V99<>"",L99<>"",L99<>0),"TMU",V99="","Milestone",V99<>"","Hourly") -> Milestone | X99: 2022-10-20 | Y99: 2022-12-31 | AA99: =_xlfn.IFS(X99="", "", X99<>"", IF(Z99="","Ongoing", "Complete")) -> Ongoing
A100: 2020 | B100: 2019024OOS | C100: Luxembourg | D100: OOS | E100: Stormwater | F100: SMDP | G100: Sam | H100: Sam | I100: N/A | J100: Level 2 | L100: 324770 | M100: 734913 | O100: 2.262872186 | P100: 1 | Q100: =IF(P100="","-",M100+((L100*(1-P100)))) -> 734913 | R100: =IFERROR(L100-Q100,"") -> -410143 | S100: =IFERROR(_xlfn.IFS(AA100="Ongoing", "", W100="hourly", 0,OR(L100="",M100=""),"",AA100="Complete", L100-M100,AA100<>"complete", ""),"") ->  | T100: =IF(AND('Master Project List'!$S100="",'Master Project List'!$AA100<>"Complete"),"",_xlfn.IFS(AA100<>"Complete","-",L100-M100<0,"OVER",AND(S100="",AA100="Complete"),"N/A", AND(L100="",M100=""),"", W100="","",S100="","On Budget", S100=0, "On Budget", S100="","",S100<0, "OVER",AND(S100>0, AA100="complete"), "UNDER",AND(S100>0, AA100<>"complete"),"-")) ->  | V100: 552.25 | W100: =_xlfn.IFS(AND(L100="",M100=""),"",AND(V100<>"",L100<>"",L100<>0),"TMU",V100="","Milestone",V100<>"","Hourly") -> TMU | X100: 2020-06-01 | AA100: =_xlfn.IFS(X100="", "", X100<>"", IF(Z100="","Ongoing", "Complete")) -> Ongoing | AB100: =IFERROR(IF(AND(X100="",Z100=""),"", WEEKNUM(_xlfn.DAYS(Z100,X100))),"") -> 
A101: 2021 | B101: 2020033OOS | C101: Latvia | D101: PH 25 OOS | E101: Stormwater | F101: Miscellaneous | G101: Sahil | H101: Sahil | L101: 589965 | M101: 795371 | O101: 1.348166417 | Q101: =IF(P101="","-",M101+((L101*(1-P101)))) -> - | R101: =IFERROR(L101-Q101,"") ->  | S101: =IFERROR(_xlfn.IFS(AA101="Ongoing", "", W101="hourly", 0,OR(L101="",M101=""),"",AA101="Complete", L101-M101,AA101<>"complete", ""),"") -> -205406 | T101: =IF(AND('Master Project List'!$S101="",'Master Project List'!$AA101<>"Complete"),"",_xlfn.IFS(AA101<>"Complete","-",L101-M101<0,"OVER",AND(S101="",AA101="Complete"),"N/A", AND(L101="",M101=""),"", W101="","",S101="","On Budget", S101=0, "On Budget", S101="","",S101<0, "OVER",AND(S101>0, AA101="complete"), "UNDER",AND(S101>0, AA101<>"complete"),"-")) -> OVER | W101: =_xlfn.IFS(AND(L101="",M101=""),"",AND(V101<>"",L101<>"",L101<>0),"TMU",V101="","Milestone",V101<>"","Hourly") -> Milestone | X101: 2020-11-01 | Z101: 2021-05-01 | AA101: =_xlfn.IFS(X101="", "", X101<>"", IF(Z101="","Ongoing", "Complete")) -> Complete | AB101: =IFERROR(IF(AND(X101="",Z101=""),"", WEEKNUM(_xlfn.DAYS(Z101,X101))),"") -> 26
A102: 2021 | B102: 2020039OOS | C102: Liechtenstein | D102: Pond G OOS | E102: Stormwater | F102: Miscellaneous | G102: Sahil | H102: Sahil | L102: 583024 | M102: 385793 | O102: 0.6617103241 | Q102: =IF(P102="","-",M102+((L102*(1-P102)))) -> - | R102: =IFERROR(L102-Q102,"") ->  | S102: =IFERROR(_xlfn.IFS(AA102="Ongoing", "", W102="hourly", 0,OR(L102="",M102=""),"",AA102="Complete", L102-M102,AA102<>"complete", ""),"") -> 197231 | T102: =IF(AND('Master Project List'!$S102="",'Master Project List'!$AA102<>"Complete"),"",_xlfn.IFS(AA102<>"Complete","-",L102-M102<0,"OVER",AND(S102="",AA102="Complete"),"N/A", AND(L102="",M102=""),"", W102="","",S102="","On Budget", S102=0, "On Budget", S102="","",S102<0, "OVER",AND(S102>0, AA102="complete"), "UNDER",AND(S102>0, AA102<>"complete"),"-")) -> UNDER | W102: =_xlfn.IFS(AND(L102="",M102=""),"",AND(V102<>"",L102<>"",L102<>0),"TMU",V102="","Milestone",V102<>"","Hourly") -> Milestone | X102: 2021-06-01 | Z102: 2021-08-01 | AA102: =_xlfn.IFS(X102="", "", X102<>"", IF(Z102="","Ongoing", "Complete")) -> Complete | AB102: =IFERROR(IF(AND(X102="",Z102=""),"", WEEKNUM(_xlfn.DAYS(Z102,X102))),"") -> 9
A103: 2023 | B103: 2023015 | C103: Libya | D103: PH 18 SWMR | E103: Stormwater | F103: SWMR | G103: Sam | H103: Christian | L103: 986741 | M103: 5001 | X103: 2023-03-21 | AA103: =_xlfn.IFS(X103="", "", X103<>"", IF(Z103="","Ongoing", "Complete")) -> Ongoing | AB103: =IFERROR(IF(AND(X103="",Z103=""),"", WEEKNUM(_xlfn.DAYS(Z103,X103))),"") -> 
A105: =IF($B105<>"",IF(LEFT($B105,1)="2",LEFT($B105,4),IF(LEFT($B105,2)="AM",MID($B105,2+1,LEN($B105)-(2+IF(LEN(CELL("contents",$B105))>9,"5","3"))),IF(LEFT($B105,3)="AWP",MID($B105,3+1,LEN($B105)-(3+IF(LEN(CELL("contents",$B105))>11,"5","3")))))),"") -> 
A106: =IF($B106<>"",IF(LEFT($B106,1)="2",LEFT($B106,4),IF(LEFT($B106,2)="AM",MID($B106,2+1,LEN($B106)-(2+IF(LEN(CELL("contents",$B106))>9,"5","3"))),IF(LEFT($B106,3)="AWP",MID($B106,3+1,LEN($B106)-(3+IF(LEN(CELL("contents",$B106))>11,"5","3")))))),"") -> 
A107: =IF($B107<>"",IF(LEFT($B107,1)="2",LEFT($B107,4),IF(LEFT($B107,2)="AM",MID($B107,2+1,LEN($B107)-(2+IF(LEN(CELL("contents",$B107))>9,"5","3"))),IF(LEFT($B107,3)="AWP",MID($B107,3+1,LEN($B107)-(3+IF(LEN(CELL("contents",$B107))>11,"5","3")))))),"") -> 
A108: =IF($B108<>"",IF(LEFT($B108,1)="2",LEFT($B108,4),IF(LEFT($B108,2)="AM",MID($B108,2+1,LEN($B108)-(2+IF(LEN(CELL("contents",$B108))>9,"5","3"))),IF(LEFT($B108,3)="AWP",MID($B108,3+1,LEN($B108)-(3+IF(LEN(CELL("contents",$B108))>11,"5","3")))))),"") -> 
A109: =IF($B109<>"",IF(LEFT($B109,1)="2",LEFT($B109,4),IF(LEFT($B109,2)="AM",MID($B109,2+1,LEN($B109)-(2+IF(LEN(CELL("contents",$B109))>9,"5","3"))),IF(LEFT($B109,3)="AWP",MID($B109,3+1,LEN($B109)-(3+IF(LEN(CELL("contents",$B109))>11,"5","3")))))),"") -> 
A110: =IF($B110<>"",IF(LEFT($B110,1)="2",LEFT($B110,4),IF(LEFT($B110,2)="AM",MID($B110,2+1,LEN($B110)-(2+IF(LEN(CELL("contents",$B110))>9,"5","3"))),IF(LEFT($B110,3)="AWP",MID($B110,3+1,LEN($B110)-(3+IF(LEN(CELL("contents",$B110))>11,"5","3")))))),"") -> 
A111: =IF($B111<>"",IF(LEFT($B111,1)="2",LEFT($B111,4),IF(LEFT($B111,2)="AM",MID($B111,2+1,LEN($B111)-(2+IF(LEN(CELL("contents",$B111))>9,"5","3"))),IF(LEFT($B111,3)="AWP",MID($B111,3+1,LEN($B111)-(3+IF(LEN(CELL("contents",$B111))>11,"5","3")))))),"") -> 
A112: =IF($B112<>"",IF(LEFT($B112,1)="2",LEFT($B112,4),IF(LEFT($B112,2)="AM",MID($B112,2+1,LEN($B112)-(2+IF(LEN(CELL("contents",$B112))>9,"5","3"))),IF(LEFT($B112,3)="AWP",MID($B112,3+1,LEN($B112)-(3+IF(LEN(CELL("contents",$B112))>11,"5","3")))))),"") -> 
A113: =IF($B113<>"",IF(LEFT($B113,1)="2",LEFT($B113,4),IF(LEFT($B113,2)="AM",MID($B113,2+1,LEN($B113)-(2+IF(LEN(CELL("contents",$B113))>9,"5","3"))),IF(LEFT($B113,3)="AWP",MID($B113,3+1,LEN($B113)-(3+IF(LEN(CELL("contents",$B113))>11,"5","3")))))),"") -> 
A114: =IF($B114<>"",IF(LEFT($B114,1)="2",LEFT($B114,4),IF(LEFT($B114,2)="AM",MID($B114,2+1,LEN($B114)-(2+IF(LEN(CELL("contents",$B114))>9,"5","3"))),IF(LEFT($B114,3)="AWP",MID($B114,3+1,LEN($B114)-(3+IF(LEN(CELL("contents",$B114))>11,"5","3")))))),"") -> 

Sheet References
A1: Project Health | B1: Project Sponsors | C1: Project Level | D1: Updated Project Types/Phases | E1: Definitions | F1: Fiscal Year | G1: Project Status | H1: Schedule Status | I1: MAGNA Services | J1: TMU | K1: Time & Materials Upset
A2: Healthy | B2: Aaron | C2: Level 1 | D2: Concept Design | F2: 2018 | G2: Ongoing | H2: IN PROGRESS | I2: Stormwater
A3: Not Awesome | B3: Jennifer | C3: Level 2 | D3: Construction | F3: 2019 | G3: Complete | H3: PROPOSED | I3: Wastewater
A4: On Fire | B4: Jessica | C4: Level 3 | D4: DD | E4: Detailed Design | F4: 2020 | H4: ON HOLD | I4: Stakeholder Engagement
A5: N/A | B5: Lisa | D5: DSSP | E5: Development Site Servicing Plan | F5: 2021 | H5: FUTURE | I5: GIS/Mapping
B6: Sam | D6: EPEA | E6: Environmental Protection and Enhancement Act | F6: 2022 | I6: Construction
D7: Feasibility | F7: 2023 | I7: Miscellaneous
D8: GIS Mapping | I8: N/A
D9: Grant Application
D10: M & M | E10: Monitoring & Maintenance
D11: RFP | E11: Request for Proposal Support
D12: Sanitary Servicing
D13: Site Servicing
D14: SMDP | E14: Staged Master Drainage Plan
D15: Stakeholder Engagement
D16: Stormwater | E16: Misc stormwater projects
D17: SWMR | E17: Stormwater Management Report
D18: Wastewater | E18: Misc wastewater projects | G18: Project Coordinator
A19: Scope Progress | D19: Water Reuse | G19: N/A
A20: 0.1 | D20: Work Plan/Proposal | G20: Alison
A21: 0.2 | D21: Miscellaneous | G21: Hannah
A22: 0.3 | G22: JT
A23: 0.4 | G23: Josh
A24: 0.5
A25: 0.6
A26: 0.7
A27: 0.8
A28: 0.9
A29: 1
